Workbook

Sheet Cookies
B1: Cookies
B2: nsit=zsvG516E9TjxJ2rMhNWESgnw;AKA_A2=A;_abck=7EBF55BCFB2519B81CB74DDB5161A1D1~-1~YAAQZaXBF9baMGqdAQAAzDVDcQ8Tg2qyrHjjPU/Sfy9HaviCObGBE0WrHaDZvYjO5261mOsSGAS120/QGHWsoSDpYkajgbkAc6HpykncVEMFrUN7SBETgBkoB5AZYB+7xTzXdWNwlUIee/vjEwmJZrjMpHjBMB/4a54SqU3juz0Yk1ZrbIvwMn5d9HNvPLQ5A5PsfI8slR2r47fqkvO8a4B3oWznITDsWnLun5BgODJk5C8eTS08zPEOn7cKKfpskje5qqVtS4WWI4Ez247Om/6Z+5Ej1zZuofPqmjNwADG6tndV450kohDIik7GbbSxGdKRr4/ZF0GsDYK5sc7xuLEJvInTJtNo+wF95PmuiJ2zoQ5DaeacRYlb3I+euuHxgNNUQRH/d8mpyiztMHYIpoOrvp1oXIRyUkZC3uCSgkPKPscFRQByLDKnX+wL/S9BR/Q/PTp22WuDKA==~-1~-1~-1~-1~-1;bm_sz=C9FDF74D7F5404E2E39DB043961B7672~YAAQZaXBF9faMGqdAQAAzDVDcR/IvNtipd0WnB6YeWxSnPfZZ7TjHi8Ab551x8HPKcbPgpRa/XNOErSyuVxD2wVPZ2Cmpd5lQrUWHiHRdnMKG1m/3trQ2MGjcjGPjRuetHicnr5o6Hdshjx4qEA24kbzdFX7Rd+Ja6gEDNVi6yTflUdjRMbyHWo1AkZn2ptkM6yi9j4nzrobzjJb8Vrse5CD22LXFthe7sFTeEnrROD9uTca0l6rQFljbYsAFZ3SxCqsx3nTBSBtHOgJzozrtYNGmKryliylI3IBcBBvAazk0+KBigcrv7gVOzCLE6waqB83tOqn7wodbUgazsudVd8RIWrkIsevV5BvhPEqUnzBNZKT6Xi5MnTrxmgs/UUjE0+s8Q8P~3356213~3227961;

Sheet Sheet3 (hidden)
A1: Invoked Function
A2: 13-Apr-2026

Sheet Option Data (hidden)
H3: 1 | I3: 2 | J3: 3 | K3: 4 | L3: 5 | M3: 6 | N3: 7 | O3: 8
A4: 1 | B4: 2 | C4: 3 | D4: 4 | E4: 5 | F4: 6 | G4: 7
B5: PE OI | C5: PE Chng in OI | D5: PE Volume | E5: PE IV | F5: PE LTP | G5: PE Change | H5: Strike Price | I5: CE OI | J5: CE Chng in OI | K5: CE Volume | L5: CE IV | M5: CE LTP | N5: CE P Change | O5: Underlying Value
A6: =IFERROR(OptionChain[[#This Row],[Strike Price]],"") -> 20100 | B6: 49943 | C6: -11030 | D6: 94457 | E6: 58.34 | F6: 1 | G6: -0.55 | H6: 20100 | I6: 1 | J6: 0 | K6: 1 | L6: 0 | M6: 3742 | N6: -38 | O6: 23767.2
A7: =IFERROR(OptionChain[[#This Row],[Strike Price]],"") -> 20150 | B7: 7253 | C7: 413 | D7: 10905 | E7: 58.64 | F7: 1.1 | G7: -0.55 | H7: 20150 | I7: 0 | J7: 0 | K7: 0 | L7: 0 | M7: 0 | N7: 0 | O7: 23767.2
A8: =IFERROR(OptionChain[[#This Row],[Strike Price]],"") -> 20200 | B8: 14247 | C8: -2692 | D8: 24186 | E8: 58.11 | F8: 1.25 | G8: -0.4 | H8: 20200 | I8: 0 | J8: 0 | K8: 0 | L8: 0 | M8: 0 | N8: 0 | O8: 23767.2
A9: =IFERROR(OptionChain[[#This Row],[Strike Price]],"") -> 20250 | B9: 2892 | C9: -77 | D9: 4329 | E9: 57.33 | F9: 1.3 | G9: -0.5 | H9: 20250 | I9: 1 | J9: 0 | K9: 0 | L9: 0 | M9: 0 | N9: 0 | O9: 23767.2
A10: =IFERROR(OptionChain[[#This Row],[Strike Price]],"") -> 20300 | B10: 7298 | C10: 832 | D10: 16934 | E10: 56.78 | F10: 1.35 | G10: -0.5 | H10: 20300 | I10: 0 | J10: 0 | K10: 0 | L10: 0 | M10: 0 | N10: 0 | O10: 23767.2
A11: =IFERROR(OptionChain[[#This Row],[Strike Price]],"") -> 20350 | B11: 1868 | C11: 440 | D11: 4514 | E11: 55.99 | F11: 1.25 | G11: -0.7 | H11: 20350 | I11: 0 | J11: 0 | K11: 0 | L11: 0 | M11: 0 | N11: 0 | O11: 23767.2
A12: =IFERROR(OptionChain[[#This Row],[Strike Price]],"") -> 20400 | B12: 2822 | C12: -269 | D12: 11773 | E12: 55.64 | F12: 1.4 | G12: -0.6 | H12: 20400 | I12: 1 | J12: 0 | K12: 0 | L12: 0 | M12: 0 | N12: 0 | O12: 23767.2
A13: =IFERROR(OptionChain[[#This Row],[Strike Price]],"") -> 20450 | B13: 1099 | C13: 369 | D13: 3215 | E13: 54.65 | F13: 1.4 | G13: -0.7 | H13: 20450 | I13: 1 | J13: 0 | K13: 0 | L13: 0 | M13: 0 | N13: 0 | O13: 23767.2
A14: =IFERROR(OptionChain[[#This Row],[Strike Price]],"") -> 20500 | B14: 35637 | C14: -4209 | D14: 55782 | E14: 54.08 | F14: 1.5 | G14: -0.7 | H14: 20500 | I14: 14 | J14: 0 | K14: 0 | L14: 0 | M14: 0 | N14: 0 | O14: 23767.2
A15: =IFERROR(OptionChain[[#This Row],[Strike Price]],"") -> 20550 | B15: 759 | C15: -8 | D15: 1756 | E15: 53.69 | F15: 1.5 | G15: -0.8 | H15: 20550 | I15: 4 | J15: 0 | K15: 0 | L15: 0 | M15: 0 | N15: 0 | O15: 23767.2
A16: =IFERROR(OptionChain[[#This Row],[Strike Price]],"") -> 20600 | B16: 4096 | C16: -315 | D16: 12789 | E16: 52.9 | F16: 1.6 | G16: -0.75 | H16: 20600 | I16: 4 | J16: 0 | K16: 0 | L16: 0 | M16: 0 | N16: 0 | O16: 23767.2
A17: =IFERROR(OptionChain[[#This Row],[Strike Price]],"") -> 20650 | B17: 1837 | C17: 168 | D17: 8505 | E17: 52.11 | F17: 1.65 | G17: -0.85 | H17: 20650 | I17: 10 | J17: 0 | K17: 0 | L17: 0 | M17: 0 | N17: 0 | O17: 23767.2
A18: =IFERROR(OptionChain[[#This Row],[Strike Price]],"") -> 20700 | B18: 13375 | C18: -460 | D18: 23574 | E18: 51.51 | F18: 1.7 | G18: -0.85 | H18: 20700 | I18: 11 | J18: 0 | K18: 0 | L18: 0 | M18: 0 | N18: 0 | O18: 23767.2
A19: =IFERROR(OptionChain[[#This Row],[Strike Price]],"") -> 20750 | B19: 1774 | C19: -476 | D19: 7167 | E19: 50.73 | F19: 1.75 | G19: -0.9 | H19: 20750 | I19: 4 | J19: 0 | K19: 0 | L19: 0 | M19: 0 | N19: 0 | O19: 23767.2
A20: =IFERROR(OptionChain[[#This Row],[Strike Price]],"") -> 20800 | B20: 12737 | C20: -2271 | D20: 21730 | E20: 49.76 | F20: 1.7 | G20: -0.9 | H20: 20800 | I20: 2 | J20: 0 | K20: 0 | L20: 0 | M20: 0 | N20: 0 | O20: 23767.2
A21: =IFERROR(OptionChain[[#This Row],[Strike Price]],"") -> 20850 | B21: 2112 | C21: -527 | D21: 10496 | E21: 49.33 | F21: 1.8 | G21: -0.9 | H21: 20850 | I21: 7 | J21: 0 | K21: 0 | L21: 0 | M21: 0 | N21: 0 | O21: 23767.2
A22: =IFERROR(OptionChain[[#This Row],[Strike Price]],"") -> 20900 | B22: 7739 | C22: -85 | D22: 14245 | E22: 48.54 | F22: 1.85 | G22: -0.95 | H22: 20900 | I22: 5 | J22: 0 | K22: 0 | L22: 0 | M22: 0 | N22: 0 | O22: 23767.2
A23: =IFERROR(OptionChain[[#This Row],[Strike Price]],"") -> 20950 | B23: 1243 | C23: -317 | D23: 8151 | E23: 47.92 | F23: 1.85 | G23: -1.05 | H23: 20950 | I23: 5 | J23: 0 | K23: 0 | L23: 0 | M23: 0 | N23: 0 | O23: 23767.2
A24: =IFERROR(OptionChain[[#This Row],[Strike Price]],"") -> 21000 | B24: 90510 | C24: -4868 | D24: 102582 | E24: 47.44 | F24: 2 | G24: -1 | H24: 21000 | I24: 376 | J24: -29 | K24: 109 | L24: 0 | M24: 2800 | N24: -203.55 | O24: 23767.2
A25: =IFERROR(OptionChain[[#This Row],[Strike Price]],"") -> 21050 | B25: 1256 | C25: -452 | D25: 9520 | E25: 46.5 | F25: 2.05 | G25: -1.1 | H25: 21050 | I25: 4 | J25: 0 | K25: 0 | L25: 0 | M25: 0 | N25: 0 | O25: 23767.2
A26: =IFERROR(OptionChain[[#This Row],[Strike Price]],"") -> 21100 | B26: 2678 | C26: -1083 | D26: 22936 | E26: 45.72 | F26: 2.05 | G26: -1.15 | H26: 21100 | I26: 7 | J26: 0 | K26: 0 | L26: 0 | M26: 0 | N26: 0 | O26: 23767.2 | AA26: 17550
A27: =IFERROR(OptionChain[[#This Row],[Strike Price]],"") -> 21150 | B27: 603 | C27: -169 | D27: 2712 | E27: 44.78 | F27: 2.05 | G27: -1.25 | H27: 21150 | I27: 3 | J27: 0 | K27: 0 | L27: 0 | M27: 0 | N27: 0 | O27: 23767.2
A28: =IFERROR(OptionChain[[#This Row],[Strike Price]],"") -> 21200 | B28: 10760 | C28: -224 | D28: 43315 | E28: 44.29 | F28: 2.1 | G28: -1.2 | H28: 21200 | I28: 6 | J28: 0 | K28: 0 | L28: 0 | M28: 0 | N28: 0 | O28: 23767.2
A29: =IFERROR(OptionChain[[#This Row],[Strike Price]],"") -> 21250 | B29: 2319 | C29: -315 | D29: 12455 | E29: 43.36 | F29: 2.1 | G29: -1.35 | H29: 21250 | I29: 1 | J29: 0 | K29: 0 | L29: 0 | M29: 0 | N29: 0 | O29: 23767.2
A30: =IFERROR(OptionChain[[#This Row],[Strike Price]],"") -> 21300 | B30: 4982 | C30: 520 | D30: 25547 | E30: 42.99 | F30: 2.25 | G30: -1.45 | H30: 21300 | I30: 3 | J30: 0 | K30: 0 | L30: 0 | M30: 0 | N30: 0 | O30: 23767.2
A31: =IFERROR(OptionChain[[#This Row],[Strike Price]],"") -> 21350 | B31: 1042 | C31: 279 | D31: 10238 | E31: 42.2 | F31: 2.2 | G31: -1.65 | H31: 21350 | I31: 3 | J31: 0 | K31: 0 | L31: 0 | M31: 0 | N31: 0 | O31: 23767.2
A32: =IFERROR(OptionChain[[#This Row],[Strike Price]],"") -> 21400 | B32: 7997 | C32: 126 | D32: 37363 | E32: 41.41 | F32: 2.25 | G32: -1.75 | H32: 21400 | I32: 5 | J32: 0 | K32: 1 | L32: 39.99 | M32: 2476.5 | N32: 775.4 | O32: 23767.2
A33: =IFERROR(OptionChain[[#This Row],[Strike Price]],"") -> 21450 | B33: 2467 | C33: 261 | D33: 12549 | E33: 40.62 | F33: 2.25 | G33: -1.95 | H33: 21450 | I33: 4 | J33: 0 | K33: 0 | L33: 0 | M33: 0 | N33: 0 | O33: 23767.2
A34: =IFERROR(OptionChain[[#This Row],[Strike Price]],"") -> 21500 | B34: 35585 | C34: -9058 | D34: 114628 | E34: 40.2 | F34: 2.35 | G34: -1.95 | H34: 21500 | I34: 466 | J34: -67 | K34: 188 | L34: 43.45 | M34: 2315 | N34: -190.7 | O34: 23767.2
A35: =IFERROR(OptionChain[[#This Row],[Strike Price]],"") -> 21550 | B35: 1459 | C35: -722 | D35: 14208 | E35: 39.28 | F35: 2.4 | G35: -2.25 | H35: 21550 | I35: 6 | J35: 0 | K35: 0 | L35: 0 | M35: 0 | N35: 0 | O35: 23767.2
A36: =IFERROR(OptionChain[[#This Row],[Strike Price]],"") -> 21600 | B36: 11314 | C36: -2018 | D36: 45966 | E36: 38.83 | F36: 2.55 | G36: -2.35 | H36: 21600 | I36: 43 | J36: 0 | K36: 1 | L36: 0 | M36: 2250 | N36: 710 | O36: 23767.2
A37: =IFERROR(OptionChain[[#This Row],[Strike Price]],"") -> 21650 | B37: 1117 | C37: -502 | D37: 14699 | E37: 38.04 | F37: 2.65 | G37: -2.45 | H37: 21650 | I37: 31 | J37: 0 | K37: 0 | L37: 0 | M37: 0 | N37: 0 | O37: 23767.2
A38: =IFERROR(OptionChain[[#This Row],[Strike Price]],"") -> 21700 | B38: 21326 | C38: -2338 | D38: 82302 | E38: 37.13 | F38: 2.6 | G38: -2.6 | H38: 21700 | I38: 32 | J38: -2 | K38: 9 | L38: 55.89 | M38: 2110 | N38: -176.6 | O38: 23767.2
A39: =IFERROR(OptionChain[[#This Row],[Strike Price]],"") -> 21750 | B39: 2508 | C39: 46 | D39: 20999 | E39: 36.65 | F39: 2.75 | G39: -2.85 | H39: 21750 | I39: 16 | J39: 0 | K39: 2 | L39: 73.21 | M39: 2219.85 | N39: 980.35 | O39: 23767.2
A40: =IFERROR(OptionChain[[#This Row],[Strike Price]],"") -> 21800 | B40: 20259 | C40: -4713 | D40: 84914 | E40: 36.04 | F40: 2.9 | G40: -3.05 | H40: 21800 | I40: 83 | J40: 0 | K40: 1 | L40: 50.3 | M40: 1980 | N40: -252.35 | O40: 23767.2
A41: =IFERROR(OptionChain[[#This Row],[Strike Price]],"") -> 21850 | B41: 2611 | C41: 1149 | D41: 22528 | E41: 35.52 | F41: 3.1 | G41: -3.15 | H41: 21850 | I41: 8 | J41: 0 | K41: 2 | L41: 0 | M41: 1950 | N41: -201.5 | O41: 23767.2
A42: =IFERROR(OptionChain[[#This Row],[Strike Price]],"") -> 21900 | B42: 16970 | C42: 7347 | D42: 69798 | E42: 34.71 | F42: 3.15 | G42: -3.3 | H42: 21900 | I42: 61 | J42: -7 | K42: 9 | L42: 25.79 | M42: 1886.6 | N42: -166.75 | O42: 23767.2
A43: =IFERROR(OptionChain[[#This Row],[Strike Price]],"") -> 21950 | B43: 2430 | C43: 71 | D43: 24951 | E43: 34.4 | F43: 3.5 | G43: -3.35 | H43: 21950 | I43: 29 | J43: 0 | K43: 0 | L43: 0 | M43: 0 | N43: 0 | O43: 23767.2
A44: =IFERROR(OptionChain[[#This Row],[Strike Price]],"") -> 22000 | B44: 67822 | C44: -22505 | D44: 268856 | E44: 33.89 | F44: 3.85 | G44: -3.4 | H44: 22000 | I44: 4271 | J44: -221 | K44: 489 | L44: 0 | M44: 1775 | N44: -233.3 | O44: 23767.2
A45: =IFERROR(OptionChain[[#This Row],[Strike Price]],"") -> 22050 | B45: 3224 | C45: 620 | D45: 23286 | E45: 33.43 | F45: 4.05 | G45: -3.6 | H45: 22050 | I45: 45 | J45: -6 | K45: 25 | L45: 0 | M45: 1753.4 | N45: -96.6 | O45: 23767.2
A46: =IFERROR(OptionChain[[#This Row],[Strike Price]],"") -> 22100 | B46: 9909 | C46: -2163 | D46: 58764 | E46: 32.86 | F46: 4.3 | G46: -3.7 | H46: 22100 | I46: 338 | J46: -7 | K46: 22 | L46: 0 | M46: 1765.8 | N46: -162.35 | O46: 23767.2
A47: =IFERROR(OptionChain[[#This Row],[Strike Price]],"") -> 22150 | B47: 3855 | C47: -664 | D47: 21622 | E47: 32.34 | F47: 4.6 | G47: -3.9 | H47: 22150 | I47: 106 | J47: -9 | K47: 10 | L47: 0 | M47: 1671.2 | N47: -77.2 | O47: 23767.2
A48: =IFERROR(OptionChain[[#This Row],[Strike Price]],"") -> 22200 | B48: 24602 | C48: -6521 | D48: 115405 | E48: 31.95 | F48: 5.05 | G48: -3.7 | H48: 22200 | I48: 969 | J48: -41 | K48: 149 | L48: 47.72 | M48: 1605.5 | N48: -211.85 | O48: 23767.2
A49: =IFERROR(OptionChain[[#This Row],[Strike Price]],"") -> 22250 | B49: 6370 | C49: 951 | D49: 34371 | E49: 31.31 | F49: 5.45 | G49: -4 | H49: 22250 | I49: 236 | J49: -1 | K49: 6 | L49: 0 | M49: 1563.45 | N49: -188.85 | O49: 23767.2
A50: =IFERROR(OptionChain[[#This Row],[Strike Price]],"") -> 22300 | B50: 28538 | C50: -5754 | D50: 129423 | E50: 30.81 | F50: 5.85 | G50: -4.2 | H50: 22300 | I50: 960 | J50: -69 | K50: 299 | L50: 38.18 | M50: 1475 | N50: -239.6 | O50: 23767.2
A51: =IFERROR(OptionChain[[#This Row],[Strike Price]],"") -> 22350 | B51: 5893 | C51: -12 | D51: 44668 | E51: 30.4 | F51: 6.55 | G51: -4.15 | H51: 22350 | I51: 428 | J51: -5 | K51: 7 | L51: 0 | M51: 1490.65 | N51: -173.3 | O51: 23767.2
A52: =IFERROR(OptionChain[[#This Row],[Strike Price]],"") -> 22400 | B52: 20864 | C52: -2647 | D52: 122067 | E52: 29.95 | F52: 7.15 | G52: -4.3 | H52: 22400 | I52: 2698 | J52: -566 | K52: 2100 | L52: 23.1 | M52: 1380 | N52: -233.55 | O52: 23767.2
A53: =IFERROR(OptionChain[[#This Row],[Strike Price]],"") -> 22450 | B53: 4496 | C53: 65 | D53: 37172 | E53: 29.49 | F53: 7.85 | G53: -4.05 | H53: 22450 | I53: 441 | J53: -14 | K53: 56 | L53: 41.03 | M53: 1335 | N53: -239.6 | O53: 23767.2
A54: =IFERROR(OptionChain[[#This Row],[Strike Price]],"") -> 22500 | B54: 87618 | C54: 3122 | D54: 331423 | E54: 29.16 | F54: 8.7 | G54: -3.7 | H54: 22500 | I54: 4542 | J54: -822 | K54: 2331 | L54: 0 | M54: 1281 | N54: -244.8 | O54: 23767.2
A55: =IFERROR(OptionChain[[#This Row],[Strike Price]],"") -> 22550 | B55: 8858 | C55: 1210 | D55: 49277 | E55: 28.63 | F55: 9.8 | G55: -3.75 | H55: 22550 | I55: 274 | J55: -4 | K55: 5 | L55: 0 | M55: 1255.1 | N55: -204.4 | O55: 23767.2
A56: =IFERROR(OptionChain[[#This Row],[Strike Price]],"") -> 22600 | B56: 24448 | C56: 2202 | D56: 121508 | E56: 28.18 | F56: 10.85 | G56: -3.4 | H56: 22600 | I56: 2602 | J56: -95 | K56: 677 | L56: 21.98 | M56: 1188.4 | N56: -229.15 | O56: 23767.2
A57: =IFERROR(OptionChain[[#This Row],[Strike Price]],"") -> 22650 | B57: 9149 | C57: 1737 | D57: 50409 | E57: 27.71 | F57: 12.1 | G57: -3.15 | H57: 22650 | I57: 543 | J57: -41 | K57: 113 | L57: 0 | M57: 1137 | N57: -240.85 | O57: 23767.2
A58: =IFERROR(OptionChain[[#This Row],[Strike Price]],"") -> 22700 | B58: 31025 | C58: 5177 | D58: 149602 | E58: 27.21 | F58: 13.35 | G58: -2.85 | H58: 22700 | I58: 3228 | J58: -674 | K58: 1634 | L58: 25.77 | M58: 1115.85 | N58: -205.75 | O58: 23767.2
A59: =IFERROR(OptionChain[[#This Row],[Strike Price]],"") -> 22750 | B59: 10977 | C59: -1445 | D59: 68225 | E59: 26.8 | F59: 15.15 | G59: -2.4 | H59: 22750 | I59: 658 | J59: -86 | K59: 120 | L59: 33.59 | M59: 1064.7 | N59: -218.2 | O59: 23767.2
A60: =IFERROR(OptionChain[[#This Row],[Strike Price]],"") -> 22800 | B60: 44341 | C60: 11495 | D60: 225286 | E60: 26.22 | F60: 16.8 | G60: -1.85 | H60: 22800 | I60: 5737 | J60: -913 | K60: 1799 | L60: 32.59 | M60: 990 | N60: -232.1 | O60: 23767.2
A61: =IFERROR(OptionChain[[#This Row],[Strike Price]],"") -> 22850 | B61: 12940 | C61: 3562 | D61: 88156 | E61: 25.85 | F61: 19 | G61: -1.15 | H61: 22850 | I61: 1674 | J61: -3 | K61: 407 | L61: 31.29 | M61: 950.2 | N61: -220.9 | O61: 23767.2
A62: =IFERROR(OptionChain[[#This Row],[Strike Price]],"") -> 22900 | B62: 54010 | C62: 13740 | D62: 214447 | E62: 25.35 | F62: 21.15 | G62: -0.5 | H62: 22900 | I62: 8205 | J62: -765 | K62: 2308 | L62: 19.17 | M62: 896.4 | N62: -232.75 | O62: 23767.2
A63: =IFERROR(OptionChain[[#This Row],[Strike Price]],"") -> 22950 | B63: 11866 | C63: 3060 | D63: 88260 | E63: 25.05 | F63: 24.35 | G63: 0.95 | H63: 22950 | I63: 1316 | J63: -67 | K63: 247 | L63: 24.32 | M63: 848.95 | N63: -226.85 | O63: 23767.2
A64: =IFERROR(OptionChain[[#This Row],[Strike Price]],"") -> 23000 | B64: 102829 | C64: 8813 | D64: 605825 | E64: 24.67 | F64: 27.85 | G64: 2.6 | H64: 23000 | I64: 18688 | J64: -4101 | K64: 14477 | L64: 21.66 | M64: 803.95 | N64: -226.65 | O64: 23767.2
A65: =IFERROR(OptionChain[[#This Row],[Strike Price]],"") -> 23050 | B65: 10895 | C65: 2764 | D65: 112373 | E65: 24.29 | F65: 31.65 | G65: 4.3 | H65: 23050 | I65: 1499 | J65: -91 | K65: 370 | L65: 23.72 | M65: 763.9 | N65: -219.8 | O65: 23767.2
A66: =IFERROR(OptionChain[[#This Row],[Strike Price]],"") -> 23100 | B66: 40259 | C66: 9303 | D66: 236041 | E66: 23.84 | F66: 36.2 | G66: 6.6 | H66: 23100 | I66: 4720 | J66: -1103 | K66: 3176 | L66: 19.65 | M66: 706.05 | N66: -227.6 | O66: 23767.2
A67: =IFERROR(OptionChain[[#This Row],[Strike Price]],"") -> 23150 | B67: 16191 | C67: 2206 | D67: 143035 | E67: 23.55 | F67: 41.2 | G67: 8.8 | H67: 23150 | I67: 1396 | J67: -243 | K67: 687 | L67: 24.18 | M67: 665.45 | N67: -219.55 | O67: 23767.2
A68: =IFERROR(OptionChain[[#This Row],[Strike Price]],"") -> 23200 | B68: 33320 | C68: 9873 | D68: 369240 | E68: 23.21 | F68: 47.35 | G68: 11.9 | H68: 23200 | I68: 12975 | J68: -1445 | K68: 6924 | L68: 20.34 | M68: 622.4 | N68: -217.5 | O68: 23767.2
A69: =IFERROR(OptionChain[[#This Row],[Strike Price]],"") -> 23250 | B69: 11389 | C69: 3429 | D69: 171921 | E69: 22.89 | F69: 54.25 | G69: 15.1 | H69: 23250 | I69: 1884 | J69: -144 | K69: 868 | L69: 21.1 | M69: 578.9 | N69: -213.05 | O69: 23767.2
A70: =IFERROR(OptionChain[[#This Row],[Strike Price]],"") -> 23300 | B70: 35429 | C70: 10116 | D70: 394817 | E70: 22.55 | F70: 62 | G70: 19.1 | H70: 23300 | I70: 4533 | J70: -966 | K70: 5913 | L70: 19.82 | M70: 538.1 | N70: -213.85 | O70: 23767.2
A71: =IFERROR(OptionChain[[#This Row],[Strike Price]],"") -> 23350 | B71: 12580 | C71: 2447 | D71: 199993 | E71: 22.3 | F71: 70.75 | G71: 23 | H71: 23350 | I71: 1057 | J71: -279 | K71: 2082 | L71: 20.83 | M71: 496.7 | N71: -202.75 | O71: 23767.2
A72: =IFERROR(OptionChain[[#This Row],[Strike Price]],"") -> 23400 | B72: 32608 | C72: 7742 | D72: 475888 | E72: 22.02 | F72: 81 | G72: 28.5 | H72: 23400 | I72: 4473 | J72: -238 | K72: 9606 | L72: 20.68 | M72: 456.95 | N72: -200.5 | O72: 23767.2
A73: =IFERROR(OptionChain[[#This Row],[Strike Price]],"") -> 23450 | B73: 12482 | C73: -3965 | D73: 256610 | E73: 21.76 | F73: 92.4 | G73: 33.95 | H73: 23450 | I73: 1112 | J73: 88 | K73: 3188 | L73: 20.4 | M73: 418.5 | N73: -194.55 | O73: 23767.2
A74: =IFERROR(OptionChain[[#This Row],[Strike Price]],"") -> 23500 | B74: 76241 | C74: 17204 | D74: 1055928 | E74: 21.52 | F74: 105.15 | G74: 39.75 | H74: 23500 | I74: 19517 | J74: 360 | K74: 73676 | L74: 20.18 | M74: 382.3 | N74: -188.9 | O74: 23767.2
A75: =IFERROR(OptionChain[[#This Row],[Strike Price]],"") -> 23550 | B75: 14010 | C75: 3200 | D75: 342580 | E75: 21.26 | F75: 119.45 | G75: 45.95 | H75: 23550 | I75: 1951 | J75: 631 | K75: 10705 | L75: 20.14 | M75: 345.2 | N75: -182.45 | O75: 23767.2
A76: =IFERROR(OptionChain[[#This Row],[Strike Price]],"") -> 23600 | B76: 38135 | C76: 6425 | D76: 644352 | E76: 21.03 | F76: 135.15 | G76: 53.4 | H76: 23600 | I76: 14859 | J76: 2987 | K76: 67635 | L76: 20.14 | M76: 313.05 | N76: -174.4 | O76: 23767.2
A77: =IFERROR(OptionChain[[#This Row],[Strike Price]],"") -> 23650 | B77: 16459 | C77: 5753 | D77: 360238 | E77: 20.84 | F77: 153.25 | G77: 60.3 | H77: 23650 | I77: 3491 | J77: 1728 | K77: 37894 | L77: 19.83 | M77: 279.1 | N77: -168.8 | O77: 23767.2
A78: =IFERROR(OptionChain[[#This Row],[Strike Price]],"") -> 23700 | B78: 38206 | C78: 11022 | D78: 818875 | E78: 20.71 | F78: 172.8 | G78: 69 | H78: 23700 | I78: 21771 | J78: 9276 | K78: 231073 | L78: 19.65 | M78: 249.2 | N78: -160.65 | O78: 23767.2
A79: =IFERROR(OptionChain[[#This Row],[Strike Price]],"") -> 23750 | B79: 28549 | C79: 17584 | D79: 626709 | E79: 20.47 | F79: 194.35 | G79: 77.45 | H79: 23750 | I79: 16420 | J79: 13744 | K79: 213781 | L79: 19.51 | M79: 220.9 | N79: -150.45 | O79: 23767.2
A80: =IFERROR(OptionChain[[#This Row],[Strike Price]],"") -> 23800 | B80: 77182 | C80: 27501 | D80: 1845258 | E80: 20.27 | F80: 218.1 | G80: 86.9 | H80: 23800 | I80: 79699 | J80: 59142 | K80: 1128149 | L80: 19.44 | M80: 193.85 | N80: -143.7 | O80: 23767.2
A81: =IFERROR(OptionChain[[#This Row],[Strike Price]],"") -> 23850 | B81: 28835 | C81: 9654 | D81: 1118829 | E81: 20.21 | F81: 242.95 | G81: 94.85 | H81: 23850 | I81: 45447 | J81: 40361 | K81: 893447 | L81: 19.26 | M81: 169.45 | N81: -134.45 | O81: 23767.2
A82: =IFERROR(OptionChain[[#This Row],[Strike Price]],"") -> 23900 | B82: 52393 | C82: -3185 | D82: 1515371 | E82: 20.07 | F82: 270.4 | G82: 103.95 | H82: 23900 | I82: 95730 | J82: 66870 | K82: 1526400 | L82: 19.11 | M82: 147.35 | N82: -124.4 | O82: 23767.2
A83: =IFERROR(OptionChain[[#This Row],[Strike Price]],"") -> 23950 | B83: 21351 | C83: 1108 | D83: 477858 | E83: 19.96 | F83: 300.6 | G83: 112.65 | H83: 23950 | I83: 48285 | J83: 32359 | K83: 701880 | L83: 19.05 | M83: 126.85 | N83: -115.6 | O83: 23767.2
A84: =IFERROR(OptionChain[[#This Row],[Strike Price]],"") -> 24000 | B84: 49181 | C84: -9765 | D84: 853846 | E84: 19.9 | F84: 332.25 | G84: 122.95 | H84: 24000 | I84: 145772 | J84: 64481 | K84: 1671525 | L84: 18.99 | M84: 109.3 | N84: -105.95 | O84: 23767.2
A85: =IFERROR(OptionChain[[#This Row],[Strike Price]],"") -> 24050 | B85: 5252 | C85: -2002 | D85: 86840 | E85: 19.95 | F85: 365.8 | G85: 132.15 | H85: 24050 | I85: 28553 | J85: 14920 | K85: 397432 | L85: 18.89 | M85: 92.95 | N85: -97.15 | O85: 23767.2
A86: =IFERROR(OptionChain[[#This Row],[Strike Price]],"") -> 24100 | B86: 7119 | C86: -2380 | D86: 131738 | E86: 19.86 | F86: 402.3 | G86: 141.55 | H86: 24100 | I86: 59547 | J86: 30378 | K86: 711888 | L86: 18.87 | M86: 78.85 | N86: -87.8 | O86: 23767.2
A87: =IFERROR(OptionChain[[#This Row],[Strike Price]],"") -> 24150 | B87: 1522 | C87: -859 | D87: 26418 | E87: 19.9 | F87: 440.25 | G87: 150.75 | H87: 24150 | I87: 26836 | J87: 18179 | K87: 369600 | L87: 18.82 | M87: 66.45 | N87: -78.6 | O87: 23767.2
A88: =IFERROR(OptionChain[[#This Row],[Strike Price]],"") -> 24200 | B88: 4954 | C88: -265 | D88: 67788 | E88: 19.91 | F88: 479.1 | G88: 159.8 | H88: 24200 | I88: 81355 | J88: 38689 | K88: 803270 | L88: 18.83 | M88: 56.05 | N88: -70.2 | O88: 23767.2
A89: =IFERROR(OptionChain[[#This Row],[Strike Price]],"") -> 24250 | B89: 1430 | C89: -342 | D89: 8338 | E89: 20.58 | F89: 519.2 | G89: 167.1 | H89: 24250 | I89: 21856 | J89: 10273 | K89: 287585 | L89: 18.87 | M89: 47.15 | N89: -61.45 | O89: 23767.2
A90: =IFERROR(OptionChain[[#This Row],[Strike Price]],"") -> 24300 | B90: 2965 | C90: 185 | D90: 21019 | E90: 20.26 | F90: 562.05 | G90: 175.9 | H90: 24300 | I90: 72004 | J90: 27884 | K90: 634194 | L90: 18.92 | M90: 39.45 | N90: -54.5 | O90: 23767.2
A91: =IFERROR(OptionChain[[#This Row],[Strike Price]],"") -> 24350 | B91: 745 | C91: -97 | D91: 2371 | E91: 20.94 | F91: 603.5 | G91: 182.5 | H91: 24350 | I91: 21002 | J91: 12545 | K91: 260137 | L91: 19.03 | M91: 33 | N91: -47.8 | O91: 23767.2
A92: =IFERROR(OptionChain[[#This Row],[Strike Price]],"") -> 24400 | B92: 2971 | C92: -57 | D92: 6525 | E92: 20.87 | F92: 653.85 | G92: 194.55 | H92: 24400 | I92: 58654 | J92: 23047 | K92: 420092 | L92: 19.07 | M92: 27.35 | N92: -41.25 | O92: 23767.2
A93: =IFERROR(OptionChain[[#This Row],[Strike Price]],"") -> 24450 | B93: 307 | C93: 23 | D93: 638 | E93: 21.43 | F93: 700 | G93: 198.9 | H93: 24450 | I93: 24165 | J93: 12570 | K93: 191539 | L93: 19.25 | M93: 23.35 | N93: -35.1 | O93: 23767.2
A94: =IFERROR(OptionChain[[#This Row],[Strike Price]],"") -> 24500 | B94: 6704 | C94: 558 | D94: 20605 | E94: 21.37 | F94: 740.65 | G94: 199.8 | H94: 24500 | I94: 131204 | J94: 30556 | K94: 804318 | L94: 19.45 | M94: 19.65 | N94: -30.05 | O94: 23767.2
A95: =IFERROR(OptionChain[[#This Row],[Strike Price]],"") -> 24550 | B95: 185 | C95: 3 | D95: 196 | E95: 21.53 | F95: 790 | G95: 205.6 | H95: 24550 | I95: 21202 | J95: 7575 | K95: 168081 | L95: 19.61 | M95: 16.55 | N95: -25.75 | O95: 23767.2
A96: =IFERROR(OptionChain[[#This Row],[Strike Price]],"") -> 24600 | B96: 863 | C96: 483 | D96: 1695 | E96: 21.71 | F96: 833.95 | G96: 207.5 | H96: 24600 | I96: 49030 | J96: 13677 | K96: 303992 | L96: 19.73 | M96: 13.7 | N96: -21.9 | O96: 23767.2
A97: =IFERROR(OptionChain[[#This Row],[Strike Price]],"") -> 24650 | B97: 28 | C97: 1 | D97: 60 | E97: 27.35 | F97: 870.65 | G97: 197.3 | H97: 24650 | I97: 15304 | J97: 5206 | K97: 142053 | L97: 19.95 | M97: 11.7 | N97: -18.35 | O97: 23767.2
A98: =IFERROR(OptionChain[[#This Row],[Strike Price]],"") -> 24700 | B98: 287 | C98: 1 | D98: 619 | E98: 18.16 | F98: 925.9 | G98: 209.4 | H98: 24700 | I98: 47051 | J98: 9219 | K98: 248187 | L98: 20.15 | M98: 9.85 | N98: -15.3 | O98: 23767.2
A99: =IFERROR(OptionChain[[#This Row],[Strike Price]],"") -> 24750 | B99: 14 | C99: -1 | D99: 33 | E99: 22.17 | F99: 964.95 | G99: 209.9 | H99: 24750 | I99: 15802 | J99: 858 | K99: 123619 | L99: 20.44 | M99: 8.65 | N99: -12.45 | O99: 23767.2
A100: =IFERROR(OptionChain[[#This Row],[Strike Price]],"") -> 24800 | B100: 177 | C100: -50 | D100: 306 | E100: 20.75 | F100: 1021.15 | G100: 209.3 | H100: 24800 | I100: 48299 | J100: 14078 | K100: 303676 | L100: 20.68 | M100: 7.35 | N100: -10.55 | O100: 23767.2
A101: =IFERROR(OptionChain[[#This Row],[Strike Price]],"") -> 24850 | B101: 6 | C101: 2 | D101: 10 | E101: 25.65 | F101: 1056.8 | G101: 202.7 | H101: 24850 | I101: 16985 | J101: 5237 | K101: 94093 | L101: 21 | M101: 6.4 | N101: -8.75 | O101: 23767.2
A102: =IFERROR(OptionChain[[#This Row],[Strike Price]],"") -> 24900 | B102: 89 | C102: 11 | D102: 119 | E102: 0 | F102: 1105.7 | G102: 203 | H102: 24900 | I102: 44411 | J102: -1206 | K102: 223064 | L102: 21.2 | M102: 5.5 | N102: -6.9 | O102: 23767.2
A103: =IFERROR(OptionChain[[#This Row],[Strike Price]],"") -> 24950 | B103: 39 | C103: 0 | D103: 8 | E103: 27.4 | F103: 1090 | G103: 136.05 | H103: 24950 | I103: 20434 | J103: 4772 | K103: 106114 | L103: 21.56 | M103: 4.95 | N103: -5.95 | O103: 23767.2
A104: =IFERROR(OptionChain[[#This Row],[Strike Price]],"") -> 25000 | B104: 2987 | C104: -137 | D104: 1203 | E104: 25.84 | F104: 1228.15 | G104: 228.7 | H104: 25000 | I104: 168868 | J104: 30484 | K104: 524892 | L104: 21.89 | M104: 4.35 | N104: -4.95 | O104: 23767.2
A105: =IFERROR(OptionChain[[#This Row],[Strike Price]],"") -> 25050 | B105: 0 | C105: 0 | D105: 0 | E105: 0 | F105: 0 | G105: 0 | H105: 25050 | I105: 12189 | J105: 2823 | K105: 53515 | L105: 22.18 | M105: 3.7 | N105: -4.15 | O105: 23767.2
A106: =IFERROR(OptionChain[[#This Row],[Strike Price]],"") -> 25100 | B106: 51 | C106: -1 | D106: 11 | E106: 34.37 | F106: 1300.2 | G106: 223.4 | H106: 25100 | I106: 37601 | J106: 6828 | K106: 181850 | L106: 22.28 | M106: 3.15 | N106: -3.3 | O106: 23767.2
A107: =IFERROR(OptionChain[[#This Row],[Strike Price]],"") -> 25150 | B107: 0 | C107: 0 | D107: 0 | E107: 0 | F107: 0 | G107: 0 | H107: 25150 | I107: 6851 | J107: 1525 | K107: 53252 | L107: 22.68 | M107: 2.85 | N107: -2.6 | O107: 23767.2
A108: =IFERROR(OptionChain[[#This Row],[Strike Price]],"") -> 25200 | B108: 180 | C108: 0 | D108: 0 | E108: 26.12 | F108: 0 | G108: 0 | H108: 25200 | I108: 59027 | J108: 8356 | K108: 180056 | L108: 22.84 | M108: 2.4 | N108: -2 | O108: 23767.2
A109: =IFERROR(OptionChain[[#This Row],[Strike Price]],"") -> 25250 | B109: 14 | C109: 0 | D109: 0 | E109: 0 | F109: 0 | G109: 0 | H109: 25250 | I109: 5912 | J109: 662 | K109: 39480 | L109: 23.3 | M109: 2.25 | N109: -1.65 | O109: 23767.2
A110: =IFERROR(OptionChain[[#This Row],[Strike Price]],"") -> 25300 | B110: 40 | C110: 0 | D110: 0 | E110: 26.84 | F110: 0 | G110: 0 | H110: 25300 | I110: 33420 | J110: 9259 | K110: 179674 | L110: 23.42 | M110: 1.9 | N110: -1.35 | O110: 23767.2
A111: =IFERROR(OptionChain[[#This Row],[Strike Price]],"") -> 25350 | B111: 3 | C111: 0 | D111: 0 | E111: 0 | F111: 0 | G111: 0 | H111: 25350 | I111: 5953 | J111: 1392 | K111: 22413 | L111: 24.12 | M111: 1.8 | N111: -1.1 | O111: 23767.2
A112: =IFERROR(OptionChain[[#This Row],[Strike Price]],"") -> 25400 | B112: 86 | C112: 0 | D112: 7 | E112: 35.74 | F112: 1539.35 | G112: -735.65 | H112: 25400 | I112: 23508 | J112: 4440 | K112: 79802 | L112: 24.38 | M112: 1.6 | N112: -0.9 | O112: 23767.2
A113: =IFERROR(OptionChain[[#This Row],[Strike Price]],"") -> 25450 | B113: 1 | C113: 0 | D113: 0 | E113: 0 | F113: 0 | G113: 0 | H113: 25450 | I113: 4981 | J113: 1719 | K113: 32471 | L113: 25.06 | M113: 1.6 | N113: -0.75 | O113: 23767.2
A114: =IFERROR(OptionChain[[#This Row],[Strike Price]],"") -> 25500 | B114: 2251 | C114: -81 | D114: 199 | E114: 0 | F114: 1714.6 | G114: 225.6 | H114: 25500 | I114: 67392 | J114: 4610 | K114: 194304 | L114: 25.23 | M114: 1.5 | N114: -0.6 | O114: 23767.2
A115: =IFERROR(OptionChain[[#This Row],[Strike Price]],"") -> 25550 | B115: 10 | C115: 0 | D115: 2 | E115: 0 | F115: 1650 | G115: -1170 | H115: 25550 | I115: 4207 | J115: -310 | K115: 18984 | L115: 25.78 | M115: 1.45 | N115: -0.5 | O115: 23767.2
A116: =IFERROR(OptionChain[[#This Row],[Strike Price]],"") -> 25600 | B116: 85 | C116: 0 | D116: 1 | E116: 44.17 | F116: 1800 | G116: 164.05 | H116: 25600 | I116: 8668 | J116: 693 | K116: 37322 | L116: 26.2 | M116: 1.25 | N116: -0.55 | O116: 23767.2
A117: =IFERROR(OptionChain[[#This Row],[Strike Price]],"") -> 25650 | B117: 16 | C117: 0 | D117: 0 | E117: 0 | F117: 0 | G117: 0 | H117: 25650 | I117: 4300 | J117: -212 | K117: 14161 | L117: 26.59 | M117: 1.15 | N117: -0.4 | O117: 23767.2
A118: =IFERROR(OptionChain[[#This Row],[Strike Price]],"") -> 25700 | B118: 1 | C118: 0 | D118: 0 | E118: 0 | F118: 0 | G118: 0 | H118: 25700 | I118: 18473 | J118: -897 | K118: 45032 | L118: 27.23 | M118: 1.1 | N118: -0.25 | O118: 23767.2
A119: =IFERROR(OptionChain[[#This Row],[Strike Price]],"") -> 25750 | B119: 1 | C119: 0 | D119: 0 | E119: 0 | F119: 0 | G119: 0 | H119: 25750 | I119: 5505 | J119: -85 | K119: 13068 | L119: 27.73 | M119: 1.05 | N119: -0.25 | O119: 23767.2
A120: =IFERROR(OptionChain[[#This Row],[Strike Price]],"") -> 25800 | B120: 31 | C120: 0 | D120: 0 | E120: 44.49 | F120: 0 | G120: 0 | H120: 25800 | I120: 10171 | J120: -2398 | K120: 32742 | L120: 28.36 | M120: 1.05 | N120: -0.2 | O120: 23767.2
A121: =IFERROR(OptionChain[[#This Row],[Strike Price]],"") -> 25850 | B121: 1 | C121: 0 | D121: 0 | E121: 0 | F121: 0 | G121: 0 | H121: 25850 | I121: 2164 | J121: -129 | K121: 6241 | L121: 28.84 | M121: 1.05 | N121: -0.25 | O121: 23767.2
A122: =IFERROR(OptionChain[[#This Row],[Strike Price]],"") -> 25900 | B122: 13 | C122: 0 | D122: 0 | E122: 0 | F122: 0 | G122: 0 | H122: 25900 | I122: 9106 | J122: 969 | K122: 15199 | L122: 29.14 | M122: 0.95 | N122: -0.3 | O122: 23767.2
A123: =IFERROR(OptionChain[[#This Row],[Strike Price]],"") -> 25950 | B123: 1 | C123: 0 | D123: 0 | E123: 0 | F123: 0 | G123: 0 | H123: 25950 | I123: 2779 | J123: -512 | K123: 8729 | L123: 30.08 | M123: 1 | N123: -0.2 | O123: 23767.2
A124: =IFERROR(OptionChain[[#This Row],[Strike Price]],"") -> 26000 | B124: 2082 | C124: -205 | D124: 315 | E124: 0 | F124: 2203.85 | G124: 215.8 | H124: 26000 | I124: 50492 | J124: -4770 | K124: 101764 | L124: 30.19 | M124: 0.85 | N124: -0.35 | O124: 23767.2
A125: =IFERROR(OptionChain[[#This Row],[Strike Price]],"") -> 26050 | B125: 0 | C125: 0 | D125: 0 | E125: 0 | F125: 0 | G125: 0 | H125: 26050 | I125: 1119 | J125: 805 | K125: 4087 | L125: 30.8 | M125: 0.85 | N125: -0.3 | O125: 23767.2
A126: =IFERROR(OptionChain[[#This Row],[Strike Price]],"") -> 26100 | B126: 0 | C126: 0 | D126: 0 | E126: 0 | F126: 0 | G126: 0 | H126: 26100 | I126: 2081 | J126: 463 | K126: 9587 | L126: 30.8 | M126: 0.75 | N126: -0.35 | O126: 23767.2
A127: =IFERROR(OptionChain[[#This Row],[Strike Price]],"") -> 26150 | B127: 0 | C127: 0 | D127: 0 | E127: 0 | F127: 0 | G127: 0 | H127: 26150 | I127: 4022 | J127: 2616 | K127: 15510 | L127: 31.4 | M127: 0.75 | N127: -0.3 | O127: 23767.2
A128: =IFERROR(OptionChain[[#This Row],[Strike Price]],"") -> 
A129: =IFERROR(OptionChain[[#This Row],[Strike Price]],"") -> 
A130: =IFERROR(OptionChain[[#This Row],[Strike Price]],"") -> 
A131: =IFERROR(OptionChain[[#This Row],[Strike Price]],"") -> 
A132: =IFERROR(OptionChain[[#This Row],[Strike Price]],"") -> 
A133: =IFERROR(OptionChain[[#This Row],[Strike Price]],"") -> 
A134: =IFERROR(OptionChain[[#This Row],[Strike Price]],"") -> 
A135: =IFERROR(OptionChain[[#This Row],[Strike Price]],"") -> 
A136: =IFERROR(OptionChain[[#This Row],[Strike Price]],"") -> 
A137: =IFERROR(OptionChain[[#This Row],[Strike Price]],"") -> 
A138: =IFERROR(OptionChain[[#This Row],[Strike Price]],"") -> 
A139: =IFERROR(OptionChain[[#This Row],[Strike Price]],"") -> 
A140: =IFERROR(OptionChain[[#This Row],[Strike Price]],"") -> 
A141: =IFERROR(OptionChain[[#This Row],[Strike Price]],"") -> 
A142: =IFERROR(OptionChain[[#This Row],[Strike Price]],"") -> 
A143: =IFERROR(OptionChain[[#This Row],[Strike Price]],"") -> 
A144: =IFERROR(OptionChain[[#This Row],[Strike Price]],"") -> 
A145: =IFERROR(OptionChain[[#This Row],[Strike Price]],"") -> 
A146: =IFERROR(OptionChain[[#This Row],[Strike Price]],"") -> 
A147: =IFERROR(OptionChain[[#This Row],[Strike Price]],"") -> 
A148: =IFERROR(OptionChain[[#This Row],[Strike Price]],"") -> 
A149: =IFERROR(OptionChain[[#This Row],[Strike Price]],"") -> 
A150: =IFERROR(OptionChain[[#This Row],[Strike Price]],"") -> 
A151: =IFERROR(OptionChain[[#This Row],[Strike Price]],"") -> 
A152: =IFERROR(OptionChain[[#This Row],[Strike Price]],"") -> 
A153: =IFERROR(OptionChain[[#This Row],[Strike Price]],"") -> 
A154: =IFERROR(OptionChain[[#This Row],[Strike Price]],"") -> 
A155: =IFERROR(OptionChain[[#This Row],[Strike Price]],"") -> 
A156: =IFERROR(OptionChain[[#This Row],[Strike Price]],"") -> 
A157: =IFERROR(OptionChain[[#This Row],[Strike Price]],"") -> 
A158: =IFERROR(OptionChain[[#This Row],[Strike Price]],"") -> 
A159: =IFERROR(OptionChain[[#This Row],[Strike Price]],"") -> 
A160: =IFERROR(OptionChain[[#This Row],[Strike Price]],"") -> 
A161: =IFERROR(OptionChain[[#This Row],[Strike Price]],"") -> 
A162: =IFERROR(OptionChain[[#This Row],[Strike Price]],"") -> 
A163: =IFERROR(OptionChain[[#This Row],[Strike Price]],"") -> 
A164: =IFERROR(OptionChain[[#This Row],[Strike Price]],"") -> 
A165: =IFERROR(OptionChain[[#This Row],[Strike Price]],"") -> 
A166: =IFERROR(OptionChain[[#This Row],[Strike Price]],"") -> 
A167: =IFERROR(OptionChain[[#This Row],[Strike Price]],"") -> 
A168: =IFERROR(OptionChain[[#This Row],[Strike Price]],"") -> 
A169: =IFERROR(OptionChain[[#This Row],[Strike Price]],"") -> 
A170: =IFERROR(OptionChain[[#This Row],[Strike Price]],"") -> 
A171: =IFERROR(OptionChain[[#This Row],[Strike Price]],"") -> 
A172: =IFERROR(OptionChain[[#This Row],[Strike Price]],"") -> 
A173: =IFERROR(OptionChain[[#This Row],[Strike Price]],"") -> 
A174: =IFERROR(OptionChain[[#This Row],[Strike Price]],"") -> 
A175: =IFERROR(OptionChain[[#This Row],[Strike Price]],"") -> 
A176: =IFERROR(OptionChain[[#This Row],[Strike Price]],"") -> 
A177: =IFERROR(OptionChain[[#This Row],[Strike Price]],"") -> 
A178: =IFERROR(OptionChain[[#This Row],[Strike Price]],"") -> 
A179: =IFERROR(OptionChain[[#This Row],[Strike Price]],"") -> 
A180: =IFERROR(OptionChain[[#This Row],[Strike Price]],"") -> 
A181: =IFERROR(OptionChain[[#This Row],[Strike Price]],"") -> 
A182: =IFERROR(OptionChain[[#This Row],[Strike Price]],"") -> 
A183: =IFERROR(OptionChain[[#This Row],[Strike Price]],"") -> 
A184: =IFERROR(OptionChain[[#This Row],[Strike Price]],"") -> 
A185: =IFERROR(OptionChain[[#This Row],[Strike Price]],"") -> 
A186: =IFERROR(OptionChain[[#This Row],[Strike Price]],"") -> 
A187: =IFERROR(OptionChain[[#This Row],[Strike Price]],"") -> 
A188: =IFERROR(OptionChain[[#This Row],[Strike Price]],"") -> 
A189: =IFERROR(OptionChain[[#This Row],[Strike Price]],"") -> 
A190: =IFERROR(OptionChain[[#This Row],[Strike Price]],"") -> 
A191: =IFERROR(OptionChain[[#This Row],[Strike Price]],"") -> 
A192: =IFERROR(OptionChain[[#This Row],[Strike Price]],"") -> 
A193: =IFERROR(OptionChain[[#This Row],[Strike Price]],"") -> 
A194: =IFERROR(OptionChain[[#This Row],[Strike Price]],"") -> 
A195: =IFERROR(OptionChain[[#This Row],[Strike Price]],"") -> 
A196: =IFERROR(OptionChain[[#This Row],[Strike Price]],"") -> 
A197: =IFERROR(OptionChain[[#This Row],[Strike Price]],"") -> 
A198: =IFERROR(OptionChain[[#This Row],[Strike Price]],"") -> 
A199: =IFERROR(OptionChain[[#This Row],[Strike Price]],"") -> 
A200: =IFERROR(OptionChain[[#This Row],[Strike Price]],"") -> 
A201: =IFERROR(OptionChain[[#This Row],[Strike Price]],"") -> 
A202: =IFERROR(OptionChain[[#This Row],[Strike Price]],"") -> 
... 78 more rows

Sheet Sheet7 (hidden)
A1: Invoked Function (3)
A2: 13-Apr-2026

Sheet Sheet6 (hidden)
A1: Column1
A2: 2026-04-13

Sheet Sheet5 (hidden)
A1: Column1
A2: 2026-04-13

Sheet Main
A1: Set Expiry | B1: Column1 | Q1: Lot Size | R1: =VLOOKUP(Scrips,'Symbol List'!F3:G149,2,FALSE) -> 75
B2: 2026-04-13 | E2: Symbol | G2: Option Type | K2: CMP
E3: Scrips | G3: Option Type | K3: CMP
E4: NIFTY | G4: =IF(OR(E4="NIFTY",E4="BANKNIFTY"),"indices","equities") -> indices | K4: ='Option Data'!O22 -> 23767.2 | Q4: Strike Diff | R4: ='Option Data'!H44-'Option Data'!H43 -> 50
A6: CALLS | L6: PUTS | V6: COIVR | W6: POIVR | X6: CE | Y6: PE
A7: VOLUME | B7: OI | C7: CHNG OI | D7: INTERPRETATION | E7: OI | F7: CE CHNG IN OI | G7: VOLUME | H7: P.CHANGE | I7: LTP | J7: CE IV | K7: STRIKE PRICE | L7: PE IV | M7: LTP | N7: P.CHANGE | O7: VOLUME | P7: PE CHNG IN OI | Q7: OI | R7: INTERPRETATION | S7: CHNG OI | T7: OI | U7: VOLUME
A8: =RANK(G8,$G$8:$G$24) -> 17 | B8: =RANK(E8,$E$8:$E$24) -> 17 | C8: =RANK(F8,$F$8:$F$24) -> 17 | D8: =IF(AND(H8>0,F8>0),"Long Buildup",IF(AND(H8>0,F8<0),"Short Covering",IF(AND(H8<0,F8<0),"Long Unwinding",IF(AND(H8<0,F8>0),"Short Buildup","")))) -> Long Unwinding | E8: =IFERROR(VLOOKUP(K8,'Option Data'!$H$5:$M$170,2,FALSE)*Main!$R$1,"") -> 79275 | F8: =IFERROR(VLOOKUP(K8,'Option Data'!$H$5:$M$170,3,FALSE)*Main!$R$1,"") -> -20925 | G8: =IFERROR(VLOOKUP(K8,'Option Data'!$H$5:$M$170,4,FALSE),"") -> 2082 | H8: =IFERROR(VLOOKUP(K8,'Option Data'!$H$5:$N$171,7,FALSE),"") -> -202.75 | I8: =IFERROR(VLOOKUP(K8,'Option Data'!$H$5:$M$170,6,FALSE),"") -> 496.7 | J8: =IFERROR(VLOOKUP(K8,'Option Data'!$H$5:$M$170,5,FALSE),"") -> 20.83 | K8: =K9-$R$4 -> 23350 | L8: =IFERROR(VLOOKUP(K8,'Option Data'!A5:$I$251,5,FALSE),"") -> 22.3 | M8: =IFERROR(VLOOKUP(K8,'Option Data'!A5:$I$251,6,FALSE),"") -> 70.75 | N8: =IFERROR(VLOOKUP(K8,'Option Data'!A5:$I$251,7,FALSE),"") -> 23 | O8: =IFERROR(VLOOKUP(K8,'Option Data'!A5:$I$251,4,FALSE),"") -> 199993 | P8: =IFERROR(VLOOKUP(K8,'Option Data'!A5:$I$251,3,FALSE)*Main!$R$1,"") -> 183525 | Q8: =IFERROR(VLOOKUP(K8,'Option Data'!A5:$I$251,2,FALSE)*Main!$R$1,"") -> 943500 | R8: =IF(AND(N8>0,P8>0),"Long Buildup",IF(AND(N8>0,P8<0),"Short Covering",IF(AND(N8<0,P8<0),"Long Unwinding",IF(AND(N8<0,P8>0),"Short Buildup","")))) -> Long Buildup | S8: =RANK(P8,$P$8:$P$24) -> 10 | T8: =RANK(Q8,$Q$8:$Q$24) -> 13 | U8: =RANK(O8,$O$8:$O$24) -> 14 | V8: =IF(F8*F8>1000000,IFERROR(F8/G8,0),0) -> -10.05043228 | W8: =IF(P8*P8>1000000,IFERROR(P8/O8,0),0) -> 0.917657118 | X8: =E8/Q8 -> 0.08402225755 | Y8: =Q8/E8 -> 11.90160833
A9: =RANK(G9,$G$8:$G$24) -> 15 | B9: =RANK(E9,$E$8:$E$24) -> 13 | C9: =RANK(F9,$F$8:$F$24) -> 16 | D9: =IF(AND(H9>0,F9>0),"Long Buildup",IF(AND(H9>0,F9<0),"Short Covering",IF(AND(H9<0,F9<0),"Long Unwinding",IF(AND(H9<0,F9>0),"Short Buildup","")))) -> Long Unwinding | E9: =IFERROR(VLOOKUP(K9,'Option Data'!$H$5:$M$170,2,FALSE)*Main!$R$1,"") -> 335475 | F9: =IFERROR(VLOOKUP(K9,'Option Data'!$H$5:$M$170,3,FALSE)*Main!$R$1,"") -> -17850 | G9: =IFERROR(VLOOKUP(K9,'Option Data'!$H$5:$M$170,4,FALSE),"") -> 9606 | H9: =IFERROR(VLOOKUP(K9,'Option Data'!$H$5:$N$171,7,FALSE),"") -> -200.5 | I9: =IFERROR(VLOOKUP(K9,'Option Data'!$H$5:$M$170,6,FALSE),"") -> 456.95 | J9: =IFERROR(VLOOKUP(K9,'Option Data'!$H$5:$M$170,5,FALSE),"") -> 20.68 | K9: 23400 | L9: =IFERROR(VLOOKUP(K9,'Option Data'!A6:$I$251,5,FALSE),"") -> 22.02 | M9: =IFERROR(VLOOKUP(K9,'Option Data'!A6:$I$251,6,FALSE),"") -> 81 | N9: =IFERROR(VLOOKUP(K9,'Option Data'!A6:$I$251,7,FALSE),"") -> 28.5 | O9: =IFERROR(VLOOKUP(K9,'Option Data'!A6:$I$251,4,FALSE),"") -> 475888 | P9: =IFERROR(VLOOKUP(K9,'Option Data'!A6:$I$251,3,FALSE)*Main!$R$1,"") -> 580650 | Q9: =IFERROR(VLOOKUP(K9,'Option Data'!A6:$I$251,2,FALSE)*Main!$R$1,"") -> 2445600 | R9: =IF(AND(N9>0,P9>0),"Long Buildup",IF(AND(N9>0,P9<0),"Short Covering",IF(AND(N9<0,P9<0),"Long Unwinding",IF(AND(N9<0,P9>0),"Short Buildup","")))) -> Long Buildup | S9: =RANK(P9,$P$8:$P$24) -> 6 | T9: =RANK(Q9,$Q$8:$Q$24) -> 7 | U9: =RANK(O9,$O$8:$O$24) -> 10 | V9: =IF(F9*F9>1000000,IFERROR(F9/G9,0),0) -> -1.858213616 | W9: =IF(P9*P9>1000000,IFERROR(P9/O9,0),0) -> 1.220140033 | X9: =E9/Q9 -> 0.1371749264 | Y9: =Q9/E9 -> 7.289961994
A10: 16 | B10: 16 | C10: 15 | D10: Short Buildup | E10: =IFERROR(VLOOKUP(K10,'Option Data'!$H$5:$M$170,2,FALSE)*Main!$R$1,"") -> 83400 | F10: =IFERROR(VLOOKUP(K10,'Option Data'!$H$5:$M$170,3,FALSE)*Main!$R$1,"") -> 6600 | G10: =IFERROR(VLOOKUP(K10,'Option Data'!$H$5:$M$170,4,FALSE),"") -> 3188 | H10: =IFERROR(VLOOKUP(K10,'Option Data'!$H$5:$N$171,7,FALSE),"") -> -194.55 | I10: =IFERROR(VLOOKUP(K10,'Option Data'!$H$5:$M$170,6,FALSE),"") -> 418.5 | J10: =IFERROR(VLOOKUP(K10,'Option Data'!$H$5:$M$170,5,FALSE),"") -> 20.4 | K10: 23450 | L10: =IFERROR(VLOOKUP(K10,'Option Data'!A7:$I$251,5,FALSE),"") -> 21.76 | M10: =IFERROR(VLOOKUP(K10,'Option Data'!A7:$I$251,6,FALSE),"") -> 92.4 | N10: =IFERROR(VLOOKUP(K10,'Option Data'!A7:$I$251,7,FALSE),"") -> 33.95 | O10: =IFERROR(VLOOKUP(K10,'Option Data'!A7:$I$251,4,FALSE),"") -> 256610 | P10: =IFERROR(VLOOKUP(K10,'Option Data'!A7:$I$251,3,FALSE)*Main!$R$1,"") -> -297375 | Q10: =IFERROR(VLOOKUP(K10,'Option Data'!A7:$I$251,2,FALSE)*Main!$R$1,"") -> 936150 | R10: Short Covering | S10: 16 | T10: 14 | U10: 13 | V10: =IF(F10*F10>1000000,IFERROR(F10/G10,0),0) -> 2.070263488 | W10: =IF(P10*P10>1000000,IFERROR(P10/O10,0),0) -> -1.158859748 | X10: 0.08908828713 | Y10: 11.22482014
A11: 11 | B11: 10 | C11: 14 | D11: Short Buildup | E11: =IFERROR(VLOOKUP(K11,'Option Data'!$H$5:$M$170,2,FALSE)*Main!$R$1,"") -> 1463775 | F11: =IFERROR(VLOOKUP(K11,'Option Data'!$H$5:$M$170,3,FALSE)*Main!$R$1,"") -> 27000 | G11: =IFERROR(VLOOKUP(K11,'Option Data'!$H$5:$M$170,4,FALSE),"") -> 73676 | H11: =IFERROR(VLOOKUP(K11,'Option Data'!$H$5:$N$171,7,FALSE),"") -> -188.9 | I11: =IFERROR(VLOOKUP(K11,'Option Data'!$H$5:$M$170,6,FALSE),"") -> 382.3 | J11: =IFERROR(VLOOKUP(K11,'Option Data'!$H$5:$M$170,5,FALSE),"") -> 20.18 | K11: 23500 | L11: =IFERROR(VLOOKUP(K11,'Option Data'!A8:$I$251,5,FALSE),"") -> 21.52 | M11: =IFERROR(VLOOKUP(K11,'Option Data'!A8:$I$251,6,FALSE),"") -> 105.15 | N11: =IFERROR(VLOOKUP(K11,'Option Data'!A8:$I$251,7,FALSE),"") -> 39.75 | O11: =IFERROR(VLOOKUP(K11,'Option Data'!A8:$I$251,4,FALSE),"") -> 1055928 | P11: =IFERROR(VLOOKUP(K11,'Option Data'!A8:$I$251,3,FALSE)*Main!$R$1,"") -> 1290300 | Q11: =IFERROR(VLOOKUP(K11,'Option Data'!A8:$I$251,2,FALSE)*Main!$R$1,"") -> 5718075 | R11: Long Buildup | S11: 3 | T11: 2 | U11: 4 | V11: 0.3664694066 | W11: 1.221958315 | X11: =E11/Q11 -> 0.2559908711 | Y11: 3.906389302
A12: 14 | B12: 15 | C12: 13 | D12: Short Buildup | E12: =IFERROR(VLOOKUP(K12,'Option Data'!$H$5:$M$170,2,FALSE)*Main!$R$1,"") -> 146325 | F12: =IFERROR(VLOOKUP(K12,'Option Data'!$H$5:$M$170,3,FALSE)*Main!$R$1,"") -> 47325 | G12: =IFERROR(VLOOKUP(K12,'Option Data'!$H$5:$M$170,4,FALSE),"") -> 10705 | H12: =IFERROR(VLOOKUP(K12,'Option Data'!$H$5:$N$171,7,FALSE),"") -> -182.45 | I12: =IFERROR(VLOOKUP(K12,'Option Data'!$H$5:$M$170,6,FALSE),"") -> 345.2 | J12: =IFERROR(VLOOKUP(K12,'Option Data'!$H$5:$M$170,5,FALSE),"") -> 20.14 | K12: 23550 | L12: =IFERROR(VLOOKUP(K12,'Option Data'!A9:$I$251,5,FALSE),"") -> 21.26 | M12: =IFERROR(VLOOKUP(K12,'Option Data'!A9:$I$251,6,FALSE),"") -> 119.45 | N12: =IFERROR(VLOOKUP(K12,'Option Data'!A9:$I$251,7,FALSE),"") -> 45.95 | O12: =IFERROR(VLOOKUP(K12,'Option Data'!A9:$I$251,4,FALSE),"") -> 342580 | P12: =IFERROR(VLOOKUP(K12,'Option Data'!A9:$I$251,3,FALSE)*Main!$R$1,"") -> 240000 | Q12: =IFERROR(VLOOKUP(K12,'Option Data'!A9:$I$251,2,FALSE)*Main!$R$1,"") -> 1050750 | R12: Long Buildup | S12: 9 | T12: 12 | U12: 12 | V12: 4.420831387 | W12: 0.7005662911 | X12: 0.1392576731 | Y12: 7.180932855
A13: 12 | B13: 12 | C13: 11 | D13: Short Buildup | E13: =IFERROR(VLOOKUP(K13,'Option Data'!$H$5:$M$170,2,FALSE)*Main!$R$1,"") -> 1114425 | F13: =IFERROR(VLOOKUP(K13,'Option Data'!$H$5:$M$170,3,FALSE)*Main!$R$1,"") -> 224025 | G13: =IFERROR(VLOOKUP(K13,'Option Data'!$H$5:$M$170,4,FALSE),"") -> 67635 | H13: =IFERROR(VLOOKUP(K13,'Option Data'!$H$5:$N$171,7,FALSE),"") -> -174.4 | I13: =IFERROR(VLOOKUP(K13,'Option Data'!$H$5:$M$170,6,FALSE),"") -> 313.05 | J13: =IFERROR(VLOOKUP(K13,'Option Data'!$H$5:$M$170,5,FALSE),"") -> 20.14 | K13: 23600 | L13: =IFERROR(VLOOKUP(K13,'Option Data'!A10:$I$251,5,FALSE),"") -> 21.03 | M13: =IFERROR(VLOOKUP(K13,'Option Data'!A10:$I$251,6,FALSE),"") -> 135.15 | N13: =IFERROR(VLOOKUP(K13,'Option Data'!A10:$I$251,7,FALSE),"") -> 53.4 | O13: =IFERROR(VLOOKUP(K13,'Option Data'!A10:$I$251,4,FALSE),"") -> 644352 | P13: =IFERROR(VLOOKUP(K13,'Option Data'!A10:$I$251,3,FALSE)*Main!$R$1,"") -> 481875 | Q13: =IFERROR(VLOOKUP(K13,'Option Data'!A10:$I$251,2,FALSE)*Main!$R$1,"") -> 2860125 | R13: Long Buildup | S13: 7 | T13: 6 | U13: 7 | V13: 3.31226436 | W13: 0.7478443459 | X13: 0.3896420611 | Y13: 2.566458039
A14: 13 | B14: 14 | C14: 12 | D14: Short Buildup | E14: =IFERROR(VLOOKUP(K14,'Option Data'!$H$5:$M$170,2,FALSE)*Main!$R$1,"") -> 261825 | F14: =IFERROR(VLOOKUP(K14,'Option Data'!$H$5:$M$170,3,FALSE)*Main!$R$1,"") -> 129600 | G14: =IFERROR(VLOOKUP(K14,'Option Data'!$H$5:$M$170,4,FALSE),"") -> 37894 | H14: =IFERROR(VLOOKUP(K14,'Option Data'!$H$5:$N$171,7,FALSE),"") -> -168.8 | I14: =IFERROR(VLOOKUP(K14,'Option Data'!$H$5:$M$170,6,FALSE),"") -> 279.1 | J14: =IFERROR(VLOOKUP(K14,'Option Data'!$H$5:$M$170,5,FALSE),"") -> 19.83 | K14: =K15-$R$4 -> 23650 | L14: =IFERROR(VLOOKUP(K14,'Option Data'!A11:$I$251,5,FALSE),"") -> 20.84 | M14: =IFERROR(VLOOKUP(K14,'Option Data'!A11:$I$251,6,FALSE),"") -> 153.25 | N14: =IFERROR(VLOOKUP(K14,'Option Data'!A11:$I$251,7,FALSE),"") -> 60.3 | O14: =IFERROR(VLOOKUP(K14,'Option Data'!A11:$I$251,4,FALSE),"") -> 360238 | P14: =IFERROR(VLOOKUP(K14,'Option Data'!A11:$I$251,3,FALSE)*Main!$R$1,"") -> 431475 | Q14: =IFERROR(VLOOKUP(K14,'Option Data'!A11:$I$251,2,FALSE)*Main!$R$1,"") -> 1234425 | R14: Long Buildup | S14: 8 | T14: 11 | U14: 11 | V14: 3.420066501 | W14: 1.197749821 | X14: 0.2121028009 | Y14: 4.71469493
A15: 9 | B15: 9 | C15: 10 | D15: Short Buildup | E15: =IFERROR(VLOOKUP(K15,'Option Data'!$H$5:$M$170,2,FALSE)*Main!$R$1,"") -> 1632825 | F15: =IFERROR(VLOOKUP(K15,'Option Data'!$H$5:$M$170,3,FALSE)*Main!$R$1,"") -> 695700 | G15: =IFERROR(VLOOKUP(K15,'Option Data'!$H$5:$M$170,4,FALSE),"") -> 231073 | H15: =IFERROR(VLOOKUP(K15,'Option Data'!$H$5:$N$171,7,FALSE),"") -> -160.65 | I15: =IFERROR(VLOOKUP(K15,'Option Data'!$H$5:$M$170,6,FALSE),"") -> 249.2 | J15: =IFERROR(VLOOKUP(K15,'Option Data'!$H$5:$M$170,5,FALSE),"") -> 19.65 | K15: =K16-$R$4 -> 23700 | L15: =IFERROR(VLOOKUP(K15,'Option Data'!A12:$I$251,5,FALSE),"") -> 20.71 | M15: =IFERROR(VLOOKUP(K15,'Option Data'!A12:$I$251,6,FALSE),"") -> 172.8 | N15: =IFERROR(VLOOKUP(K15,'Option Data'!A12:$I$251,7,FALSE),"") -> 69 | O15: =IFERROR(VLOOKUP(K15,'Option Data'!A12:$I$251,4,FALSE),"") -> 818875 | P15: =IFERROR(VLOOKUP(K15,'Option Data'!A12:$I$251,3,FALSE)*Main!$R$1,"") -> 826650 | Q15: =IFERROR(VLOOKUP(K15,'Option Data'!A12:$I$251,2,FALSE)*Main!$R$1,"") -> 2865450 | R15: Long Buildup | S15: 4 | T15: 5 | U15: 6 | V15: 3.010736867 | W15: 1.009494734 | X15: 0.5698319636 | Y15: 1.754903312
A16: 10 | B16: 11 | C16: 9 | D16: Short Buildup | E16: =IFERROR(VLOOKUP(K16,'Option Data'!$H$5:$M$170,2,FALSE)*Main!$R$1,"") -> 1231500 | F16: =IFERROR(VLOOKUP(K16,'Option Data'!$H$5:$M$170,3,FALSE)*Main!$R$1,"") -> 1030800 | G16: =IFERROR(VLOOKUP(K16,'Option Data'!$H$5:$M$170,4,FALSE),"") -> 213781 | H16: =IFERROR(VLOOKUP(K16,'Option Data'!$H$5:$N$171,7,FALSE),"") -> -150.45 | I16: =IFERROR(VLOOKUP(K16,'Option Data'!$H$5:$M$170,6,FALSE),"") -> 220.9 | J16: =IFERROR(VLOOKUP(K16,'Option Data'!$H$5:$M$170,5,FALSE),"") -> 19.51 | K16: =ROUND(K4/R4,0)*R4 -> 23750 | L16: =IFERROR(VLOOKUP(K16,'Option Data'!A13:$I$251,5,FALSE),"") -> 20.47 | M16: =IFERROR(VLOOKUP(K16,'Option Data'!A13:$I$251,6,FALSE),"") -> 194.35 | N16: =IFERROR(VLOOKUP(K16,'Option Data'!A13:$I$251,7,FALSE),"") -> 77.45 | O16: =IFERROR(VLOOKUP(K16,'Option Data'!A13:$I$251,4,FALSE),"") -> 626709 | P16: =IFERROR(VLOOKUP(K16,'Option Data'!A13:$I$251,3,FALSE)*Main!$R$1,"") -> 1318800 | Q16: =IFERROR(VLOOKUP(K16,'Option Data'!A13:$I$251,2,FALSE)*Main!$R$1,"") -> 2141175 | R16: Long Buildup | S16: 2 | T16: 9 | U16: 8 | V16: 4.821756845 | W16: 2.104325931 | X16: 0.5751514939 | Y16: 1.738672351
A17: 3 | B17: 3 | C17: 3 | D17: Short Buildup | E17: =IFERROR(VLOOKUP(K17,'Option Data'!$H$5:$M$170,2,FALSE)*Main!$R$1,"") -> 5977425 | F17: =IFERROR(VLOOKUP(K17,'Option Data'!$H$5:$M$170,3,FALSE)*Main!$R$1,"") -> 4435650 | G17: =IFERROR(VLOOKUP(K17,'Option Data'!$H$5:$M$170,4,FALSE),"") -> 1128149 | H17: =IFERROR(VLOOKUP(K17,'Option Data'!$H$5:$N$171,7,FALSE),"") -> -143.7 | I17: =IFERROR(VLOOKUP(K17,'Option Data'!$H$5:$M$170,6,FALSE),"") -> 193.85 | J17: =IFERROR(VLOOKUP(K17,'Option Data'!$H$5:$M$170,5,FALSE),"") -> 19.44 | K17: =K16+$R$4 -> 23800 | L17: =IFERROR(VLOOKUP(K17,'Option Data'!A14:$I$251,5,FALSE),"") -> 20.27 | M17: =IFERROR(VLOOKUP(K17,'Option Data'!A14:$I$251,6,FALSE),"") -> 218.1 | N17: =IFERROR(VLOOKUP(K17,'Option Data'!A14:$I$251,7,FALSE),"") -> 86.9 | O17: =IFERROR(VLOOKUP(K17,'Option Data'!A14:$I$251,4,FALSE),"") -> 1845258 | P17: =IFERROR(VLOOKUP(K17,'Option Data'!A14:$I$251,3,FALSE)*Main!$R$1,"") -> 2062575 | Q17: =IFERROR(VLOOKUP(K17,'Option Data'!A14:$I$251,2,FALSE)*Main!$R$1,"") -> 5788650 | R17: Long Buildup | S17: 1 | T17: 1 | U17: 1 | V17: 3.93179447 | W17: 1.117770523 | X17: 1.032611231 | Y17: 0.9684186753
A18: 4 | B18: 6 | C18: 4 | D18: Short Buildup | E18: =IFERROR(VLOOKUP(K18,'Option Data'!$H$5:$M$170,2,FALSE)*Main!$R$1,"") -> 3408525 | F18: =IFERROR(VLOOKUP(K18,'Option Data'!$H$5:$M$170,3,FALSE)*Main!$R$1,"") -> 3027075 | G18: =IFERROR(VLOOKUP(K18,'Option Data'!$H$5:$M$170,4,FALSE),"") -> 893447 | H18: =IFERROR(VLOOKUP(K18,'Option Data'!$H$5:$N$171,7,FALSE),"") -> -134.45 | I18: =IFERROR(VLOOKUP(K18,'Option Data'!$H$5:$M$170,6,FALSE),"") -> 169.45 | J18: =IFERROR(VLOOKUP(K18,'Option Data'!$H$5:$M$170,5,FALSE),"") -> 19.26 | K18: =K17+$R$4 -> 23850 | L18: =IFERROR(VLOOKUP(K18,'Option Data'!A15:$I$251,5,FALSE),"") -> 20.21 | M18: =IFERROR(VLOOKUP(K18,'Option Data'!A15:$I$251,6,FALSE),"") -> 242.95 | N18: =IFERROR(VLOOKUP(K18,'Option Data'!A15:$I$251,7,FALSE),"") -> 94.85 | O18: =IFERROR(VLOOKUP(K18,'Option Data'!A15:$I$251,4,FALSE),"") -> 1118829 | P18: =IFERROR(VLOOKUP(K18,'Option Data'!A15:$I$251,3,FALSE)*Main!$R$1,"") -> 724050 | Q18: =IFERROR(VLOOKUP(K18,'Option Data'!A15:$I$251,2,FALSE)*Main!$R$1,"") -> 2162625 | R18: Long Buildup | S18: 5 | T18: 8 | U18: 3 | V18: 3.388085695 | W18: 0.6471498325 | X18: 1.576105427 | Y18: 0.6344753229
A19: 2 | B19: 2 | C19: 1 | D19: Short Buildup | E19: =IFERROR(VLOOKUP(K19,'Option Data'!$H$5:$M$170,2,FALSE)*Main!$R$1,"") -> 7179750 | F19: =IFERROR(VLOOKUP(K19,'Option Data'!$H$5:$M$170,3,FALSE)*Main!$R$1,"") -> 5015250 | G19: =IFERROR(VLOOKUP(K19,'Option Data'!$H$5:$M$170,4,FALSE),"") -> 1526400 | H19: =IFERROR(VLOOKUP(K19,'Option Data'!$H$5:$N$171,7,FALSE),"") -> -124.4 | I19: =IFERROR(VLOOKUP(K19,'Option Data'!$H$5:$M$170,6,FALSE),"") -> 147.35 | J19: =IFERROR(VLOOKUP(K19,'Option Data'!$H$5:$M$170,5,FALSE),"") -> 19.11 | K19: =K18+$R$4 -> 23900 | L19: =IFERROR(VLOOKUP(K19,'Option Data'!A16:$I$251,5,FALSE),"") -> 20.07 | M19: =IFERROR(VLOOKUP(K19,'Option Data'!A16:$I$251,6,FALSE),"") -> 270.4 | N19: =IFERROR(VLOOKUP(K19,'Option Data'!A16:$I$251,7,FALSE),"") -> 103.95 | O19: =IFERROR(VLOOKUP(K19,'Option Data'!A16:$I$251,4,FALSE),"") -> 1515371 | P19: =IFERROR(VLOOKUP(K19,'Option Data'!A16:$I$251,3,FALSE)*Main!$R$1,"") -> -238875 | Q19: =IFERROR(VLOOKUP(K19,'Option Data'!A16:$I$251,2,FALSE)*Main!$R$1,"") -> 3929475 | R19: Short Covering | S19: 15 | T19: 3 | U19: 2 | V19: 3.28567217 | W19: -0.157634665 | X19: 1.827152482 | Y19: 0.5472996971
A20: 6 | B20: 5 | C20: 5 | D20: Short Buildup | E20: =IFERROR(VLOOKUP(K20,'Option Data'!$H$5:$M$170,2,FALSE)*Main!$R$1,"") -> 3621375 | F20: =IFERROR(VLOOKUP(K20,'Option Data'!$H$5:$M$170,3,FALSE)*Main!$R$1,"") -> 2426925 | G20: =IFERROR(VLOOKUP(K20,'Option Data'!$H$5:$M$170,4,FALSE),"") -> 701880 | H20: =IFERROR(VLOOKUP(K20,'Option Data'!$H$5:$N$171,7,FALSE),"") -> -115.6 | I20: =IFERROR(VLOOKUP(K20,'Option Data'!$H$5:$M$170,6,FALSE),"") -> 126.85 | J20: =IFERROR(VLOOKUP(K20,'Option Data'!$H$5:$M$170,5,FALSE),"") -> 19.05 | K20: 23950 | L20: =IFERROR(VLOOKUP(K20,'Option Data'!A17:$I$251,5,FALSE),"") -> 19.96 | M20: =IFERROR(VLOOKUP(K20,'Option Data'!A17:$I$251,6,FALSE),"") -> 300.6 | N20: =IFERROR(VLOOKUP(K20,'Option Data'!A17:$I$251,7,FALSE),"") -> 112.65 | O20: =IFERROR(VLOOKUP(K20,'Option Data'!A17:$I$251,4,FALSE),"") -> 477858 | P20: =IFERROR(VLOOKUP(K20,'Option Data'!A17:$I$251,3,FALSE)*Main!$R$1,"") -> 83100 | Q20: =IFERROR(VLOOKUP(K20,'Option Data'!A17:$I$251,2,FALSE)*Main!$R$1,"") -> 1601325 | R20: Long Buildup | S20: 11 | T20: 10 | U20: 9 | V20: 3.457749188 | W20: 0.1739010334 | X20: 2.261486581 | Y20: 0.4421870146
A21: 1 | B21: 1 | C21: 2 | D21: Short Buildup | E21: =IFERROR(VLOOKUP(K21,'Option Data'!$H$5:$M$170,2,FALSE)*Main!$R$1,"") -> 10932900 | F21: =IFERROR(VLOOKUP(K21,'Option Data'!$H$5:$M$170,3,FALSE)*Main!$R$1,"") -> 4836075 | G21: =IFERROR(VLOOKUP(K21,'Option Data'!$H$5:$M$170,4,FALSE),"") -> 1671525 | H21: =IFERROR(VLOOKUP(K21,'Option Data'!$H$5:$N$171,7,FALSE),"") -> -105.95 | I21: =IFERROR(VLOOKUP(K21,'Option Data'!$H$5:$M$170,6,FALSE),"") -> 109.3 | J21: =IFERROR(VLOOKUP(K21,'Option Data'!$H$5:$M$170,5,FALSE),"") -> 18.99 | K21: 24000 | L21: =IFERROR(VLOOKUP(K21,'Option Data'!A18:$I$251,5,FALSE),"") -> 19.9 | M21: =IFERROR(VLOOKUP(K21,'Option Data'!A18:$I$251,6,FALSE),"") -> 332.25 | N21: =IFERROR(VLOOKUP(K21,'Option Data'!A18:$I$251,7,FALSE),"") -> 122.95 | O21: =IFERROR(VLOOKUP(K21,'Option Data'!A18:$I$251,4,FALSE),"") -> 853846 | P21: =IFERROR(VLOOKUP(K21,'Option Data'!A18:$I$251,3,FALSE)*Main!$R$1,"") -> -732375 | Q21: =IFERROR(VLOOKUP(K21,'Option Data'!A18:$I$251,2,FALSE)*Main!$R$1,"") -> 3688575 | R21: Short Covering | S21: 17 | T21: 4 | U21: 5 | V21: 2.893211289 | W21: -0.857736641 | X21: 2.963990159 | Y21: 0.3373830365
A22: 7 | B22: 7 | C22: 8 | D22: Short Buildup | E22: =IFERROR(VLOOKUP(K22,'Option Data'!$H$5:$M$170,2,FALSE)*Main!$R$1,"") -> 2141475 | F22: =IFERROR(VLOOKUP(K22,'Option Data'!$H$5:$M$170,3,FALSE)*Main!$R$1,"") -> 1119000 | G22: =IFERROR(VLOOKUP(K22,'Option Data'!$H$5:$M$170,4,FALSE),"") -> 397432 | H22: =IFERROR(VLOOKUP(K22,'Option Data'!$H$5:$N$171,7,FALSE),"") -> -97.15 | I22: =IFERROR(VLOOKUP(K22,'Option Data'!$H$5:$M$170,6,FALSE),"") -> 92.95 | J22: =IFERROR(VLOOKUP(K22,'Option Data'!$H$5:$M$170,5,FALSE),"") -> 18.89 | K22: 24050 | L22: =IFERROR(VLOOKUP(K22,'Option Data'!A19:$I$251,5,FALSE),"") -> 19.95 | M22: =IFERROR(VLOOKUP(K22,'Option Data'!A19:$I$251,6,FALSE),"") -> 365.8 | N22: =IFERROR(VLOOKUP(K22,'Option Data'!A19:$I$251,7,FALSE),"") -> 132.15 | O22: =IFERROR(VLOOKUP(K22,'Option Data'!A19:$I$251,4,FALSE),"") -> 86840 | P22: =IFERROR(VLOOKUP(K22,'Option Data'!A19:$I$251,3,FALSE)*Main!$R$1,"") -> -150150 | Q22: =IFERROR(VLOOKUP(K22,'Option Data'!A19:$I$251,2,FALSE)*Main!$R$1,"") -> 393900 | R22: Short Covering | S22: 13 | T22: 16 | U22: 16 | V22: 2.815575998 | W22: -1.729041916 | X22: 5.436595583 | Y22: 0.1839386404
A23: 5 | B23: 4 | C23: 6 | D23: Short Buildup | E23: =IFERROR(VLOOKUP(K23,'Option Data'!$H$5:$M$170,2,FALSE)*Main!$R$1,"") -> 4466025 | F23: =IFERROR(VLOOKUP(K23,'Option Data'!$H$5:$M$170,3,FALSE)*Main!$R$1,"") -> 2278350 | G23: =IFERROR(VLOOKUP(K23,'Option Data'!$H$5:$M$170,4,FALSE),"") -> 711888 | H23: =IFERROR(VLOOKUP(K23,'Option Data'!$H$5:$N$171,7,FALSE),"") -> -87.8 | I23: =IFERROR(VLOOKUP(K23,'Option Data'!$H$5:$M$170,6,FALSE),"") -> 78.85 | J23: =IFERROR(VLOOKUP(K23,'Option Data'!$H$5:$M$170,5,FALSE),"") -> 18.87 | K23: 24100 | L23: =IFERROR(VLOOKUP(K23,'Option Data'!A20:$I$251,5,FALSE),"") -> 19.86 | M23: =IFERROR(VLOOKUP(K23,'Option Data'!A20:$I$251,6,FALSE),"") -> 402.3 | N23: =IFERROR(VLOOKUP(K23,'Option Data'!A20:$I$251,7,FALSE),"") -> 141.55 | O23: =IFERROR(VLOOKUP(K23,'Option Data'!A20:$I$251,4,FALSE),"") -> 131738 | P23: =IFERROR(VLOOKUP(K23,'Option Data'!A20:$I$251,3,FALSE)*Main!$R$1,"") -> -178500 | Q23: =IFERROR(VLOOKUP(K23,'Option Data'!A20:$I$251,2,FALSE)*Main!$R$1,"") -> 533925 | R23: Short Covering | S23: 14 | T23: 15 | U23: 15 | V23: 3.200433214 | W23: -1.354962122 | X23: 8.364517488 | Y23: 0.1195526223
A24: 8 | B24: 8 | C24: 7 | D24: Short Buildup | E24: =IFERROR(VLOOKUP(K24,'Option Data'!$H$5:$M$170,2,FALSE)*Main!$R$1,"") -> 2012700 | F24: =IFERROR(VLOOKUP(K24,'Option Data'!$H$5:$M$170,3,FALSE)*Main!$R$1,"") -> 1363425 | G24: =IFERROR(VLOOKUP(K24,'Option Data'!$H$5:$M$170,4,FALSE),"") -> 369600 | H24: =IFERROR(VLOOKUP(K24,'Option Data'!$H$5:$N$171,7,FALSE),"") -> -78.6 | I24: =IFERROR(VLOOKUP(K24,'Option Data'!$H$5:$M$170,6,FALSE),"") -> 66.45 | J24: =IFERROR(VLOOKUP(K24,'Option Data'!$H$5:$M$170,5,FALSE),"") -> 18.82 | K24: 24150 | L24: =IFERROR(VLOOKUP(K24,'Option Data'!A21:$I$251,5,FALSE),"") -> 19.9 | M24: =IFERROR(VLOOKUP(K24,'Option Data'!A21:$I$251,6,FALSE),"") -> 440.25 | N24: =IFERROR(VLOOKUP(K24,'Option Data'!A21:$I$251,7,FALSE),"") -> 150.75 | O24: =IFERROR(VLOOKUP(K24,'Option Data'!A21:$I$251,4,FALSE),"") -> 26418 | P24: =IFERROR(VLOOKUP(K24,'Option Data'!A21:$I$251,3,FALSE)*Main!$R$1,"") -> -64425 | Q24: =IFERROR(VLOOKUP(K24,'Option Data'!A21:$I$251,2,FALSE)*Main!$R$1,"") -> 114150 | R24: Short Covering | S24: 12 | T24: 17 | U24: 17 | V24: 3.688920455 | W24: -2.438678174 | X24: 17.63206307 | Y24: 0.05671486063
E27: =SUM(E8:E24) -> 46089000 | F27: =SUM(F8:F24) -> 26624025 | G27: =SUM(G8:G24) -> 8049961 | I27: CALL | J27: =AVERAGE(J8:J24) -> 19.63470588 | L27: =AVERAGEA(L8:L24) -> 20.70764706 | M27: PUT | O27: =SUM(O8:O24) -> 10837331 | P27: =SUM(P8:P24) -> 6561300 | Q27: =SUM(Q8:Q24) -> 38407875
I29: N.CHNG OI | K29: =F27-P27 -> 20062725 | L29: VOLUME PCR | N29: =G27/O27 -> 0.7427992187
B30: OI | C30: Change in OI | I30: N.OI | K30: =E27-Q27 -> 7681125
B31: =E14+E15+E16+E17+E18 -> 12512100 | C31: =F14+F15+F16+F17+F18 -> 9318825
B32: =Q14+Q15+Q16+Q17+Q18 -> 14192325 | C32: =P14+P15+P16+P17+P18 -> 5363550 | K32: 4
B33: Call side | C33: =B31+C31 -> 21830925 | E33: Call Side | F33: =SUM(J14:J18) -> 97.69
B34: Put side | C34: =B32+C32 -> 19555875 | E34: Put Side | F34: =SUM(L14:L18) -> 102.5 | U34: =NOW() -> 46121.57288 | AC34: d
E35: Diff | F35: =F33-F34 -> -4.81 | I35: PREMIUM DECAY | Q35: PREMIUM DECAY HIGHEST OI
B36: CE Side | C36: =C31*15 -> 139782375 | I36: CE % | J36: PRRICE | K36: CHANGE | L36: STRIKE | M36: CHANGE | N36: PRRICE | O36: PE % | Q36: TOTAL OI | R36: CE % | S36: PRICE | T36: CHANGE | U36: STRIKE | V36: CHANGE | W36: PRICE | X36: PE % | Y36: TOTAL OI
B37: PE side | C37: =C32*15 -> 80453250 | I37: =K37/(J37-K37) -> -0.3577802852 | J37: =I13 -> 313.05 | K37: =H13 -> -174.4 | L37: =K13 -> 23600 | M37: =N13 -> 53.4 | N37: =M13 -> 135.15 | O37: =M37/(N37-M37) -> 0.6532110092 | R37: - | S37: - | T37: - | U37: =SUMIF(Main!Q8:Q24,Y37,Main!K8:K24) -> 23800 | V37: =SUMIF(Main!Q8:Q24,Y37,Main!N8:N24) -> 86.9 | W37: =SUMIF(Main!Q8:Q24,Y37,Main!M8:M24) -> 218.1 | X37: =V37/(W37-V37) -> 0.662347561 | Y37: =LARGE(Main!Q8:Q24,1) -> 5788650
I38: =K38/(J38-K38) -> -0.376869837 | J38: =I14 -> 279.1 | K38: =H14 -> -168.8 | L38: =K14 -> 23650 | M38: =N14 -> 60.3 | N38: =M14 -> 153.25 | O38: 0.6487358795 | R38: - | S38: - | T38: - | U38: =SUMIF(Main!Q9:Q25,Y38,Main!K9:K25) -> 23500 | V38: =SUMIF(Main!Q9:Q25,Y38,Main!N9:N25) -> 39.75 | W38: =SUMIF(Main!Q9:Q25,Y38,Main!M9:M25) -> 105.15 | X38: =V38/(W38-V38) -> 0.6077981651 | Y38: =LARGE(Main!Q9:Q25,2) -> 5718075
I39: -0.3919726729 | J39: 249.2 | K39: -160.65 | L39: 23700 | M39: 69 | N39: 172.8 | O39: 0.6647398844 | R39: - | S39: - | T39: - | U39: =SUMIF(Main!Q10:Q26,Y39,Main!K10:K26) -> 23900 | V39: =SUMIF(Main!Q10:Q26,Y39,Main!N10:N26) -> 103.95 | W39: =SUMIF(Main!Q10:Q26,Y39,Main!M10:M26) -> 270.4 | X39: =V39/(W39-V39) -> 0.6245118654 | Y39: =LARGE(Main!Q10:Q26,3) -> 3929475
I40: -0.4051433957 | J40: 220.9 | K40: -150.45 | L40: 23750 | M40: 77.45 | N40: 194.35 | O40: 0.6625320787 | Q40: =LARGE(Main!E8:E24,3) -> 5977425 | R40: =T40/(S40-T40) -> -0.4257147089 | S40: =SUMIF(Main!E8:E24,Main!Q40,Main!I8:I24) -> 193.85 | T40: =SUMIF(Main!E8:E24,Main!Q40,Main!H8:H24) -> -143.7 | U40: =SUMIF(Main!E8:E24,Q40,Main!K8:K24) -> 23800 | V40: =SUMIF(Main!Q11:Q27,Y40,Main!N11:N27) -> 0 | W40: =SUMIF(Main!Q11:Q27,Y40,Main!M11:M27) -> 0 | X40: -
I41: -0.4257147089 | J41: 193.85 | K41: -143.7 | L41: 23800 | M41: 86.9 | N41: 218.1 | O41: 0.662347561 | Q41: =LARGE(Main!E9:E25,2) -> 7179750 | R41: =T41/(S41-T41) -> -0.4577736891 | S41: =SUMIF(Main!E9:E25,Main!Q41,Main!I9:I25) -> 147.35 | T41: =SUMIF(Main!E9:E25,Main!Q41,Main!H9:H25) -> -124.4 | U41: =SUMIF(Main!E8:E24,Q41,Main!K8:K24) -> 23900 | V41: =SUMIF(Main!Q12:Q28,Y41,Main!N12:N28) -> 0 | W41: =SUMIF(Main!Q12:Q28,Y41,Main!M12:M28) -> 0 | X41: -
I42: -0.4424152682 | J42: 169.45 | K42: -134.45 | L42: 23850 | M42: 94.85 | N42: 242.95 | O42: 0.6404456448 | Q42: =LARGE(Main!E10:E26,1) -> 10932900 | R42: =T42/(S42-T42) -> -0.4922183508 | S42: =SUMIF(Main!E10:E26,Main!Q42,Main!I10:I26) -> 109.3 | T42: =SUMIF(Main!E10:E26,Main!Q42,Main!H10:H26) -> -105.95 | U42: =SUMIF(Main!E8:E24,Q42,Main!K8:K24) -> 24000 | V42: =SUMIF(Main!Q13:Q29,Y42,Main!N13:N29) -> 0 | W42: =SUMIF(Main!Q13:Q29,Y42,Main!M13:M29) -> 0 | X42: -
I43: -0.4577736891 | J43: 147.35 | K43: -124.4 | L43: 23900 | M43: 103.95 | N43: 270.4 | O43: 0.6245118654
I44: AVARGAE | J44: 126.85 | K44: -115.6 | M44: 112.65 | N44: 300.6
I45: TOTAL SUM | J45: =SUM(J37:J43) -> 1572.9 | K45: =SUM(K37:K43) -> -1056.85 | M45: =SUM(M37:M43) -> 545.85 | N45: =SUM(N37:N43) -> 1387

Sheet Sheet4 (hidden)
A4: Calls chart for row 29 | B4: 8894 | C4: 900 | D4: 11461 | E4: 30.02 | F4: 250.05 | G4: -5.55 | H4: 450 | I4: 249.5 | J4: 250.05 | K4: 250 | L4: 15200 | M4: 50 | N4: 117.9 | O4: 118.15 | P4: 50 | Q4: -26.75 | R4: 118.15 | S4: 32.84 | T4: 51251 | U4: 5835 | V4: 44957 | W4: Puts chart for row 29
A5: Calls chart for row 30 | B5: 4824 | C5: 841 | D5: 7583 | E5: 29.8 | F5: 219.4 | G5: -4.95 | H5: 50 | I5: 217.4 | J5: 217.8 | K5: 100 | L5: 15250 | M5: 150 | N5: 135.8 | O5: 136.05 | P5: 200 | Q5: -27.85 | R5: 135.8 | S5: 32.41 | T5: 18988 | U5: 1493 | V5: 13638 | W5: Puts chart for row 30
A6: Calls chart for row 31 | B6: 59927 | C6: 8149 | D6: 71441 | E6: 29.26 | F6: 187.8 | G6: -8.85 | H6: 50 | I6: 187.65 | J6: 188 | K6: 100 | L6: 15300 | M6: 100 | N6: 155.2 | O6: 155.5 | P6: 100 | Q6: -27.95 | R6: 155.25 | S6: 32.23 | T6: 85125 | U6: 9844 | V6: 67687 | W6: Puts chart for row 31
A7: Calls chart for row 32 | B7: 15214 | C7: 4662 | D7: 34796 | E7: 28.86 | F7: 158.95 | G7: -11.55 | H7: 100 | I7: 158.95 | J7: 159.25 | K7: 100 | L7: 15350 | M7: 100 | N7: 177.45 | O7: 177.8 | P7: 550 | Q7: -26.5 | R7: 177.7 | S7: 31.54 | T7: 29800 | U7: 4037 | V7: 13688 | W7: Puts chart for row 32
A8: Calls chart for row 33 | B8: 50273 | C8: 6775 | D8: 53336 | E8: 28.51 | F8: 132.7 | G8: -12.7 | H8: 50 | I8: 132.65 | J8: 132.95 | K8: 100 | L8: 15400 | M8: 50 | N8: 202.2 | O8: 202.5 | P8: 200 | Q8: -25.7 | R8: 202.45 | S8: 31.62 | T8: 38100 | U8: 5308 | V8: 33980 | W8: Puts chart for row 33
A9: Calls chart for row 34 | B9: 10097 | C9: 1013 | D9: 14163 | E9: 28.12 | F9: 111.05 | G9: -9.95 | H9: 350 | I9: 110.4 | J9: 110.6 | K9: 50 | L9: 15450 | M9: 50 | N9: 230.35 | O9: 230.75 | P9: 150 | Q9: -25.5 | R9: 229.95 | S9: 30.92 | T9: 3618 | U9: 327 | V9: 4271
A13: Calls chart for row 29 | B13: 10507 | C13: 2513 | D13: 17107 | E13: 30.56 | F13: 222.55 | G13: -33.05 | H13: 50 | I13: 221.7 | J13: 222.05 | K13: 50 | L13: 15200 | M13: 50 | N13: 132.65 | O13: 132.75 | P13: 50 | Q13: -12.05 | R13: 132.85 | S13: 32.33 | T13: 80309 | U13: 15339 | V13: 54461 | W13: Puts chart for row 29
A14: Calls chart for row 30 | B14: 5678 | C14: 1695 | D14: 11188 | E14: 30.12 | F14: 191.5 | G14: -32.85 | H14: 150 | I14: 190.9 | J14: 191.25 | K14: 150 | L14: 15250 | M14: 150 | N14: 152.05 | O14: 152.4 | P14: 400 | Q14: -11 | R14: 152.65 | S14: 32.03 | T14: 30469 | U14: 4981 | V14: 17126 | W14: Puts chart for row 30
A15: Calls chart for row 31 | B15: 67507 | C15: 15729 | D15: 104538 | E15: 29.66 | F15: 162.8 | G15: -33.85 | H15: 150 | I15: 162.55 | J15: 162.75 | K15: 50 | L15: 15300 | M15: 200 | N15: 173.8 | O15: 174.25 | P15: 550 | Q15: -9.5 | R15: 173.7 | S15: 31.36 | T15: 133128 | U15: 20567 | V15: 78410 | W15: Puts chart for row 31
A16: Calls chart for row 32 | B16: 20937 | C16: 10385 | D16: 50393 | E16: 29.26 | F16: 137.15 | G16: -33.35 | H16: 100 | I16: 136.85 | J16: 137.1 | K16: 950 | L16: 15350 | M16: 50 | N16: 197.7 | O16: 198 | P16: 200 | Q16: -6 | R16: 198.2 | S16: 30.89 | T16: 45924 | U16: 9132 | V16: 18783 | W16: Puts chart for row 32
A17: Calls chart for row 33 | B17: 59099 | C17: 15601 | D17: 79465 | E17: 28.79 | F17: 113.35 | G17: -32.05 | H17: 100 | I17: 113.3 | J17: 113.5 | K17: 50 | L17: 15400 | M17: 100 | N17: 224.6 | O17: 225 | P17: 400 | Q17: -4.3 | R17: 223.85 | S17: 30.52 | T17: 59122 | U17: 11937 | V17: 40609 | W17: Puts chart for row 33
A18: Calls chart for row 34 | B18: 12150 | C18: 3066 | D18: 21238 | E18: 28.33 | F18: 92.85 | G18: -28.15 | H18: 200 | I18: 92.35 | J18: 92.5 | K18: 200 | L18: 15450 | M18: 100 | N18: 253.35 | O18: 254.1 | P18: 700 | Q18: -2.25 | R18: 253.2 | S18: 30.27 | T18: 5576 | U18: 1254 | V18: 5198
A21: 13738 | B21: -4869 | C21: 40621 | D21: 28.75 | E21: 193.2 | F21: 54.7 | G21: 150 | H21: 192.7 | I21: 193.1 | J21: 300 | K21: 15350 | L21: 100 | M21: 78.9 | N21: 79.1 | O21: 550 | P21: -66.15 | Q21: 79.1 | R21: 27.65 | S21: 77226 | T21: 9191 | U21: 25243 | V21: Puts chart for row 32
A22: Calls chart for row 33 | B22: 59513 | C22: 2546 | D22: 194994 | E22: 27.78 | F22: 159 | G22: 47.05 | H22: 200 | I22: 158.6 | J22: 158.9 | K22: 50 | L22: 15400 | M22: 1100 | N22: 95 | O22: 95.2 | P22: 350 | Q22: -72.15 | R22: 95.1 | S22: 26.75 | T22: 256941 | U22: 38658 | V22: 67430 | W22: Puts chart for row 33
A23: Calls chart for row 34 | B23: 29691 | C23: 11903 | D23: 128970 | E23: 26.91 | F23: 127.4 | G23: 38.2 | H23: 150 | I23: 127.4 | J23: 127.55 | K23: 50 | L23: 15450 | M23: 50 | N23: 114.1 | O23: 114.25 | P23: 50 | Q23: -81.2 | R23: 114.25 | S23: 25.91 | T23: 127222 | U23: 21807 | V23: 27335 | W23: Puts chart for row 34
A24: Calls chart for row 35 | B24: 118768 | C24: -13750 | D24: 449773 | E24: 26.05 | F24: 99.65 | G24: 31.5 | H24: 100 | I24: 99.6 | J24: 99.65 | K24: 400 | L24: 15500 | M24: 200 | N24: 136.5 | O24: 136.85 | P24: 1100 | Q24: -86.3 | R24: 136.75 | S24: 25.09 | T24: 184309 | U24: 18405 | V24: 52402 | W24: Puts chart for row 35
A25: Calls chart for row 36 | B25: 51197 | C25: 6759 | D25: 90871 | E25: 25.18 | F25: 75.55 | G25: 24.8 | H25: 700 | I25: 75.3 | J25: 75.45 | K25: 50 | L25: 15550 | M25: 50 | N25: 162.1 | O25: 162.5 | P25: 50 | Q25: -89.9 | R25: 162.45 | S25: 24.21 | T25: 21954 | U25: 2386 | V25: 5735 | W25: Puts chart for row 36
A26: Calls chart for row 37 | B26: 101946 | C26: 7038 | D26: 329457 | E26: 24.44 | F26: 55.05 | G26: 17.4 | H26: 1000 | I26: 55.05 | J26: 55.15 | K26: 2200 | L26: 15600 | M26: 200 | N26: 191.8 | O26: 192.25 | P26: 250 | Q26: -102.7 | R26: 192.25 | S26: 23.36 | T26: 41264 | U26: 5062 | V26: 13829
A29: 42241 | B29: -16126 | C29: 95810 | D29: 27.2 | E29: 234.3 | F29: 68.95 | G29: 100 | H29: 233.9 | I29: 234.4 | J29: 100 | K29: 15300 | L29: 2450 | M29: 62 | N29: 62.15 | O29: 500 | P29: -64.55 | Q29: 62 | R29: 29.53 | S29: 266546 | T29: 25042 | U29: 101731 | V29: Puts chart for row 31
A30: Calls chart for row 32 | B30: 16211 | C30: -2396 | D30: 48996 | E30: 26.44 | F30: 197 | G30: 58.5 | H30: 250 | I30: 197.25 | J30: 197.7 | K30: 50 | L30: 15350 | M30: 1450 | N30: 75.3 | O30: 75.5 | P30: 200 | Q30: -69.8 | R30: 75.45 | S30: 28.92 | T30: 93565 | U30: 13121 | V30: 29173 | W30: Puts chart for row 32
A31: Calls chart for row 33 | B31: 61803 | C31: 4836 | D31: 236915 | E31: 26.05 | F31: 163.25 | G31: 51.3 | H31: 100 | I31: 162.9 | J31: 163 | K31: 50 | L31: 15400 | M31: 200 | N31: 90.8 | O31: 91 | P31: 100 | Q31: -76.3 | R31: 90.95 | S31: 28.25 | T31: 307849 | U31: 46516 | V31: 75288 | W31: Puts chart for row 33
A32: Calls chart for row 34 | B32: 30901 | C32: 13113 | D32: 158484 | E32: 25.38 | F32: 131.6 | G32: 42.4 | H32: 50 | I32: 131.35 | J32: 131.6 | K32: 300 | L32: 15450 | M32: 100 | N32: 109.5 | O32: 109.75 | P32: 900 | Q32: -85.7 | R32: 109.75 | S32: 27.54 | T32: 152564 | U32: 25028 | V32: 30556 | W32: Puts chart for row 34
A33: Calls chart for row 35 | B33: 122139 | C33: -10379 | D33: 521932 | E33: 24.79 | F33: 102.95 | G33: 34.8 | H33: 50 | I33: 102.95 | J33: 103.15 | K33: 50 | L33: 15500 | M33: 100 | N33: 131.2 | O33: 131.4 | P33: 50 | Q33: -91.65 | R33: 131.4 | S33: 27.03 | T33: 219804 | U33: 22389 | V33: 56386 | W33: Puts chart for row 35
A34: Calls chart for row 36 | B34: 50695 | C34: 6257 | D34: 112434 | E34: 24.07 | F34: 78.25 | G34: 27.5 | H34: 50 | I34: 78.25 | J34: 78.35 | K34: 350 | L34: 15550 | M34: 200 | N34: 156.6 | O34: 156.95 | P34: 50 | Q34: -95.1 | R34: 157.25 | S34: 26.45 | T34: 25760 | U34: 2935 | V34: 6284 | W34: Puts chart for row 36
A35: Calls chart for row 37 | B35: 109581 | C35: 14673 | D35: 384433 | E35: 23.43 | F35: 57.6 | G35: 19.95 | H35: 500 | I35: 57.45 | J35: 57.6 | K35: 3150 | L35: 15600 | M35: 150 | N35: 185.5 | O35: 185.8 | P35: 200 | Q35: -109.25 | R35: 185.7 | S35: 26.07 | T35: 49621 | U35: 6613 | V35: 15380
A37: Calls chart for row 28 | B37: 3159 | C37: 1778 | D37: 9477 | E37: 31.23 | F37: 213.2 | G37: -76.65 | H37: 50 | I37: 213.25 | J37: 213.75 | K37: 150 | L37: 15150 | M37: 100 | N37: 141 | O37: 141.05 | P37: 50 | Q37: 12.7 | R37: 141 | S37: 32.02 | T37: 67252 | U37: 4798 | V37: 13815 | W37: Puts chart for row 28
A38: Calls chart for row 29 | B38: 36272 | C38: 28278 | D38: 105815 | E38: 30.69 | F38: 183.85 | G38: -71.75 | H38: 150 | I38: 183.8 | J38: 184.1 | K38: 50 | L38: 15200 | M38: 4000 | N38: 161 | O38: 161.2 | P38: 50 | Q38: 16.55 | R38: 161.45 | S38: 31.72 | T38: 304941 | U38: 35379 | V38: 74501 | W38: Puts chart for row 29
A39: Calls chart for row 30 | B39: 16512 | C39: 12529 | D39: 62108 | E39: 30.16 | F39: 156 | G39: -68.35 | H39: 250 | I39: 155.9 | J39: 156.15 | K39: 200 | L39: 15250 | M39: 500 | N39: 183.35 | O39: 183.45 | P39: 550 | Q39: 19.85 | R39: 183.5 | S39: 31.06 | T39: 131954 | U39: 13176 | V39: 25321 | W39: Puts chart for row 30
A40: Calls chart for row 31 | B40: 92285 | C40: 40507 | D40: 283116 | E40: 29.78 | F40: 131.25 | G40: -65.4 | H40: 150 | I40: 131.15 | J40: 131.4 | K40: 150 | L40: 15300 | M40: 250 | N40: 208.15 | O40: 208.45 | P40: 100 | Q40: 25.3 | R40: 208.5 | S40: 30.74 | T40: 343174 | U40: 25244 | V40: 83087 | W40: Puts chart for row 31
A41: Calls chart for row 32 | B41: 23941 | C41: 13389 | D41: 108406 | E41: 29.3 | F41: 108.8 | G41: -61.7 | H41: 200 | I41: 108.6 | J41: 108.85 | K41: 250 | L41: 15350 | M41: 600 | N41: 235.5 | O41: 235.85 | P41: 100 | Q41: 31.8 | R41: 236 | S41: 30.31 | T41: 95164 | U41: 4906 | V41: 14557 | W41: Puts chart for row 32
A42: Calls chart for row 33 | B42: 73172 | C42: 29674 | D42: 216726 | E42: 28.87 | F42: 88.75 | G42: -56.65 | H42: 650 | I42: 88.6 | J42: 88.8 | K42: 850 | L42: 15400 | M42: 250 | N42: 266 | O42: 266.3 | P42: 250 | Q42: 38.1 | R42: 266.25 | S42: 29.99 | T42: 128060 | U42: 8353 | V42: 37025

Sheet Sheet1 (hidden)
A1: CALL | C1: PUT | G1: CALL | I1: PUT
A2: TOP | B2: 10 | C2: TOP | D2: 10
A3: Hurdle | B3: =LARGE(Main!F8:F24,B2) -> 695700 | C3: HURDLE | D3: =LARGE(Main!P8:P24,D2) -> 183525 | G3: Max Volume 1 | H3: =LARGE(Main!$G$8:$G$24,1) -> 1671525 | I3: Max Volume 1 | J3: =LARGE(Main!$O$8:$O$24,1) -> 1845258
A4: Count | B4: =COUNTIF(Main!F8:F24, ">="&B3) -> 10 | C4: COUNT | D4: =COUNTIF(Main!P8:P26, ">="&D3) -> 10 | G4: Max Volume 2 | H4: =LARGE(Main!$G$8:$G$24,2) -> 1526400 | I4: Max Volume 2 | J4: =LARGE(Main!$O$8:$O$24,2) -> 1515371
A7: CALL | D7: CE STRIKE PRICE | E7: PUTS | H7: PE STRIKE PRICE
A8: No | B8: OI CE | C8: Ch OI CE | E8: No | F8: OI PE | G8: Ch OI PE
A9: =IF(ROWS(A$9:A9)>$B$4,"",ROWS(A$9:A9)) -> 1 | B9: =IF(A9="","",LARGE(Main!$E$8:$E$24,A9)) -> 10932900 | C9: =IF(A9="","",LARGE(Main!$F$8:$F$24,A9)) -> 5015250 | D9: =SUMIF(Main!$F$8:$F$24,C9,Main!$K$8:$K$24) -> 23900 | E9: =IF(ROWS(E$9:E9)>$D$4,"",ROWS(E$9:E9)) -> 1 | F9: =IF(E9="","",LARGE(Main!$Q$8:$Q$24,E9)) -> 5788650 | G9: =IF(E9="","",LARGE(Main!$P$8:$P$24,E9)) -> 2062575 | H9: =SUMIF(Main!$P$8:$P$24,G9,Main!$K$8:$K$24) -> 23800
A10: =IF(ROWS(A$9:A10)>$B$4,"",ROWS(A$9:A10)) -> 2 | B10: =IF(A10="","",LARGE(Main!$E$8:$E$24,A10)) -> 7179750 | C10: =IF(A10="","",LARGE(Main!$F$8:$F$24,A10)) -> 4836075 | D10: =SUMIF(Main!$F$8:$F$24,C10,Main!$K$8:$K$24) -> 24000 | E10: =IF(ROWS(E$9:E10)>$D$4,"",ROWS(E$9:E10)) -> 2 | F10: =IF(E10="","",LARGE(Main!$Q$8:$Q$24,E10)) -> 5718075 | G10: =IF(E10="","",LARGE(Main!$P$8:$P$24,E10)) -> 1318800 | H10: =SUMIF(Main!$P$8:$P$24,G10,Main!$K$8:$K$24) -> 23750
A11: =IF(ROWS(A$9:A11)>$B$4,"",ROWS(A$9:A11)) -> 3 | B11: =IF(A11="","",LARGE(Main!$E$8:$E$24,A11)) -> 5977425 | C11: =IF(A11="","",LARGE(Main!$F$8:$F$24,A11)) -> 4435650 | D11: =SUMIF(Main!$F$8:$F$24,C11,Main!$K$8:$K$24) -> 23800 | E11: =IF(ROWS(E$9:E11)>$D$4,"",ROWS(E$9:E11)) -> 3 | F11: =IF(E11="","",LARGE(Main!$Q$8:$Q$24,E11)) -> 3929475 | G11: =IF(E11="","",LARGE(Main!$P$8:$P$24,E11)) -> 1290300 | H11: =SUMIF(Main!$P$8:$P$24,G11,Main!$K$8:$K$24) -> 23500
A12: =IF(ROWS(A$9:A12)>$B$4,"",ROWS(A$9:A12)) -> 4 | B12: =IF(A12="","",LARGE(Main!$E$8:$E$24,A12)) -> 4466025 | C12: =IF(A12="","",LARGE(Main!$F$8:$F$24,A12)) -> 3027075 | D12: =SUMIF(Main!$F$8:$F$24,C12,Main!$K$8:$K$24) -> 23850 | E12: =IF(ROWS(E$9:E12)>$D$4,"",ROWS(E$9:E12)) -> 4 | F12: =IF(E12="","",LARGE(Main!$Q$8:$Q$24,E12)) -> 3688575 | G12: =IF(E12="","",LARGE(Main!$P$8:$P$24,E12)) -> 826650 | H12: =SUMIF(Main!$P$8:$P$24,G12,Main!$K$8:$K$24) -> 23700
A13: =IF(ROWS(A$9:A13)>$B$4,"",ROWS(A$9:A13)) -> 5 | B13: =IF(A13="","",LARGE(Main!$E$8:$E$24,A13)) -> 3621375 | C13: =IF(A13="","",LARGE(Main!$F$8:$F$24,A13)) -> 2426925 | D13: =SUMIF(Main!$F$8:$F$24,C13,Main!$K$8:$K$24) -> 23950 | E13: =IF(ROWS(E$9:E13)>$D$4,"",ROWS(E$9:E13)) -> 5 | F13: =IF(E13="","",LARGE(Main!$Q$8:$Q$24,E13)) -> 2865450 | G13: =IF(E13="","",LARGE(Main!$P$8:$P$24,E13)) -> 724050 | H13: =SUMIF(Main!$P$8:$P$24,G13,Main!$K$8:$K$24) -> 23850
A14: =IF(ROWS(A$9:A14)>$B$4,"",ROWS(A$9:A14)) -> 6 | B14: =IF(A14="","",LARGE(Main!$E$8:$E$24,A14)) -> 3408525 | C14: =IF(A14="","",LARGE(Main!$F$8:$F$24,A14)) -> 2278350 | D14: =SUMIF(Main!$F$8:$F$24,C14,Main!$K$8:$K$24) -> 24100 | E14: =IF(ROWS(E$9:E14)>$D$4,"",ROWS(E$9:E14)) -> 6 | F14: =IF(E14="","",LARGE(Main!$Q$8:$Q$24,E14)) -> 2860125 | G14: =IF(E14="","",LARGE(Main!$P$8:$P$24,E14)) -> 580650 | H14: =SUMIF(Main!$P$8:$P$24,G14,Main!$K$8:$K$24) -> 23400
A15: =IF(ROWS(A$9:A15)>$B$4,"",ROWS(A$9:A15)) -> 7 | B15: =IF(A15="","",LARGE(Main!$E$8:$E$24,A15)) -> 2141475 | C15: =IF(A15="","",LARGE(Main!$F$8:$F$24,A15)) -> 1363425 | D15: =SUMIF(Main!$F$8:$F$24,C15,Main!$K$8:$K$24) -> 24150 | E15: =IF(ROWS(E$9:E15)>$D$4,"",ROWS(E$9:E15)) -> 7 | F15: =IF(E15="","",LARGE(Main!$Q$8:$Q$24,E15)) -> 2445600 | G15: =IF(E15="","",LARGE(Main!$P$8:$P$24,E15)) -> 481875 | H15: =SUMIF(Main!$P$8:$P$24,G15,Main!$K$8:$K$24) -> 23600
A16: =IF(ROWS(A$9:A16)>$B$4,"",ROWS(A$9:A16)) -> 8 | B16: =IF(A16="","",LARGE(Main!$E$8:$E$24,A16)) -> 2012700 | C16: =IF(A16="","",LARGE(Main!$F$8:$F$24,A16)) -> 1119000 | D16: =SUMIF(Main!$F$8:$F$24,C16,Main!$K$8:$K$24) -> 24050 | E16: =IF(ROWS(E$9:E16)>$D$4,"",ROWS(E$9:E16)) -> 8 | F16: =IF(E16="","",LARGE(Main!$Q$8:$Q$24,E16)) -> 2162625 | G16: =IF(E16="","",LARGE(Main!$P$8:$P$24,E16)) -> 431475 | H16: =SUMIF(Main!$P$8:$P$24,G16,Main!$K$8:$K$24) -> 23650
A17: =IF(ROWS(A$9:A17)>$B$4,"",ROWS(A$9:A17)) -> 9 | B17: =IF(A17="","",LARGE(Main!$E$8:$E$24,A17)) -> 1632825 | C17: =IF(A17="","",LARGE(Main!$F$8:$F$24,A17)) -> 1030800 | D17: =SUMIF(Main!$F$8:$F$24,C17,Main!$K$8:$K$24) -> 23750 | E17: =IF(ROWS(E$9:E17)>$D$4,"",ROWS(E$9:E17)) -> 9 | F17: =IF(E17="","",LARGE(Main!$Q$8:$Q$24,E17)) -> 2141175 | G17: =IF(E17="","",LARGE(Main!$P$8:$P$24,E17)) -> 240000 | H17: =SUMIF(Main!$P$8:$P$24,G17,Main!$K$8:$K$24) -> 23550
A18: =IF(ROWS(A$9:A18)>$B$4,"",ROWS(A$9:A18)) -> 10 | B18: =IF(A18="","",LARGE(Main!$E$8:$E$24,A18)) -> 1463775 | C18: =IF(A18="","",LARGE(Main!$F$8:$F$24,A18)) -> 695700 | D18: =SUMIF(Main!$F$8:$F$24,C18,Main!$K$8:$K$24) -> 23700 | E18: =IF(ROWS(E$9:E18)>$D$4,"",ROWS(E$9:E18)) -> 10 | F18: =IF(E18="","",LARGE(Main!$Q$8:$Q$24,E18)) -> 1601325 | G18: =IF(E18="","",LARGE(Main!$P$8:$P$24,E18)) -> 183525 | H18: =SUMIF(Main!$P$8:$P$24,G18,Main!$K$8:$K$24) -> 23350
A19: =IF(ROWS(A$9:A19)>$B$4,"",ROWS(A$9:A19)) ->  | B19: =IF(A19="","",LARGE(Main!$E$8:$E$24,A19)) ->  | C19: =IF(A19="","",LARGE(Main!$F$8:$F$24,A19)) ->  | D19: =SUMIF(Main!$F$8:$F$24,C19,Main!$K$8:$K$24) -> 0 | E19: =IF(ROWS(E$9:E19)>$D$4,"",ROWS(E$9:E19)) ->  | F19: =IF(E19="","",LARGE(Main!$Q$8:$Q$24,E19)) ->  | G19: =IF(E19="","",LARGE(Main!$P$8:$P$24,E19)) ->  | H19: =SUMIF(Main!$P$8:$P$24,G19,Main!$K$8:$K$24) -> 0
A20: =IF(ROWS(A$9:A20)>$B$4,"",ROWS(A$9:A20)) ->  | B20: =IF(A20="","",LARGE(Main!$E$8:$E$24,A20)) ->  | C20: =IF(A20="","",LARGE(Main!$F$8:$F$24,A20)) ->  | D20: =SUMIF(Main!$F$8:$F$24,C20,Main!$K$8:$K$24) -> 0 | E20: =IF(ROWS(E$9:E20)>$D$4,"",ROWS(E$9:E20)) ->  | F20: =IF(E20="","",LARGE(Main!$Q$8:$Q$24,E20)) ->  | G20: =IF(E20="","",LARGE(Main!$P$8:$P$24,E20)) ->  | H20: =SUMIF(Main!$P$8:$P$24,G20,Main!$K$8:$K$24) -> 0
A21: =IF(ROWS(A$9:A21)>$B$4,"",ROWS(A$9:A21)) ->  | B21: =IF(A21="","",LARGE(Main!$E$8:$E$24,A21)) ->  | C21: =IF(A21="","",LARGE(Main!$F$8:$F$24,A21)) ->  | D21: =SUMIF(Main!$F$8:$F$24,C21,Main!$K$8:$K$24) -> 0 | E21: =IF(ROWS(E$9:E21)>$D$4,"",ROWS(E$9:E21)) ->  | F21: =IF(E21="","",LARGE(Main!$Q$8:$Q$24,E21)) ->  | G21: =IF(E21="","",LARGE(Main!$P$8:$P$24,E21)) ->  | H21: =SUMIF(Main!$P$8:$P$24,G21,Main!$K$8:$K$24) -> 0
A22: =IF(ROWS(A$9:A22)>$B$4,"",ROWS(A$9:A22)) ->  | B22: =IF(A22="","",LARGE(Main!$E$8:$E$24,A22)) ->  | C22: =IF(A22="","",LARGE(Main!$F$8:$F$24,A22)) ->  | D22: =SUMIF(Main!$F$8:$F$24,C22,Main!$K$8:$K$24) -> 0 | E22: =IF(ROWS(E$9:E22)>$D$4,"",ROWS(E$9:E22)) ->  | F22: =IF(E22="","",LARGE(Main!$Q$8:$Q$24,E22)) ->  | G22: =IF(E22="","",LARGE(Main!$P$8:$P$24,E22)) ->  | H22: =SUMIF(Main!$P$8:$P$24,G22,Main!$K$8:$K$24) -> 0
A23: =IF(ROWS(A$9:A23)>$B$4,"",ROWS(A$9:A23)) ->  | B23: =IF(A23="","",LARGE(Main!$E$8:$E$24,A23)) ->  | C23: =IF(A23="","",LARGE(Main!$F$8:$F$24,A23)) ->  | D23: =SUMIF(Main!$F$8:$F$24,C23,Main!$K$8:$K$24) -> 0 | E23: =IF(ROWS(E$9:E23)>$D$4,"",ROWS(E$9:E23)) ->  | F23: =IF(E23="","",LARGE(Main!$Q$8:$Q$24,E23)) ->  | G23: =IF(E23="","",LARGE(Main!$P$8:$P$24,E23)) ->  | H23: =SUMIF(Main!$P$8:$P$24,G23,Main!$K$8:$K$24) -> 0
A24: =IF(ROWS(A$9:A24)>$B$4,"",ROWS(A$9:A24)) ->  | B24: =IF(A24="","",LARGE(Main!$E$8:$E$24,A24)) ->  | C24: =IF(A24="","",LARGE(Main!$F$8:$F$24,A24)) ->  | D24: =SUMIF(Main!$F$8:$F$24,C24,Main!$K$8:$K$24) -> 0 | E24: =IF(ROWS(E$9:E24)>$D$4,"",ROWS(E$9:E24)) ->  | F24: =IF(E24="","",LARGE(Main!$Q$8:$Q$24,E24)) ->  | G24: =IF(E24="","",LARGE(Main!$P$8:$P$24,E24)) ->  | H24: =SUMIF(Main!$P$8:$P$24,G24,Main!$K$8:$K$24) -> 0
A25: =IF(ROWS(A$9:A25)>$B$4,"",ROWS(A$9:A25)) ->  | B25: =IF(A25="","",LARGE(Main!$E$8:$E$24,A25)) ->  | C25: =IF(A25="","",LARGE(Main!$F$8:$F$24,A25)) ->  | D25: =SUMIF(Main!$F$8:$F$24,C25,Main!$K$8:$K$24) -> 0 | E25: =IF(ROWS(E$9:E25)>$D$4,"",ROWS(E$9:E25)) ->  | F25: =IF(E25="","",LARGE(Main!$Q$8:$Q$24,E25)) ->  | G25: =IF(E25="","",LARGE(Main!$P$8:$P$24,E25)) ->  | H25: =SUMIF(Main!$P$8:$P$24,G25,Main!$K$8:$K$24) -> 0
D29: MARKET | E29: 32246.8 | F29: PRICE
A30: CALL | E30: T | F30: PUT
E31: R
B32: OI | C32: OI Change | D32: Strike Price | E32: A | G32: OI | H32: OI Change | I32: Strike Price
A33: 1 | B33: =LARGE(Main!$E$8:$E$24,1) -> 10932900 | C33: =LARGE(Main!$F$8:$F$24,1) -> 5015250 | D33: =SUMIF(Main!$F$8:$F$24,C33,Main!$K$8:$K$24) -> 23900 | E33: D | F33: 1 | G33: =LARGE(Main!$Q$8:$Q$24,1) -> 5788650 | H33: =LARGE(Main!$P$8:$P$24,1) -> 2062575 | I33: =SUMIF(Main!$P$8:$P$24,H33,Main!$K$8:$K$24) -> 23800
A34: 2 | B34: =LARGE(Main!$E$8:$E$24,2) -> 7179750 | C34: =LARGE(Main!$F$8:$F$26,2) -> 4836075 | D34: =SUMIF(Main!$F$8:$F$24,C34,Main!$K$8:$K$24) -> 24000 | E34: I | F34: 2 | G34: =LARGE(Main!$Q$8:$Q$24,2) -> 5718075 | H34: =LARGE(Main!$P$8:$P$24,2) -> 1318800 | I34: =SUMIF(Main!$P$8:$P$24,H34,Main!$K$8:$K$24) -> 23750
A35: 3 | B35: =LARGE(Main!$E$8:$E$24,3) -> 5977425 | C35: =LARGE(Main!$F$8:$F$26,3) -> 4435650 | D35: =SUMIF(Main!$F$8:$F$24,C35,Main!$K$8:$K$24) -> 23800 | E35: N | F35: 3 | G35: =LARGE(Main!$Q$8:$Q$24,3) -> 3929475 | H35: =LARGE(Main!$P$8:$P$24,3) -> 1290300 | I35: =SUMIF(Main!$P$8:$P$24,H35,Main!$K$8:$K$24) -> 23500
A36: 4 | B36: =LARGE(Main!$E$8:$E$24,4) -> 4466025 | C36: =LARGE(Main!$F$8:$F$26,4) -> 3027075 | D36: =SUMIF(Main!$F$8:$F$24,C36,Main!$K$8:$K$24) -> 23850 | E36: G | F36: 4 | G36: =LARGE(Main!$Q$8:$Q$24,4) -> 3688575 | H36: =LARGE(Main!$P$8:$P$24,4) -> 826650 | I36: =SUMIF(Main!$P$8:$P$24,H36,Main!$K$8:$K$24) -> 23700
A37: 5 | B37: =LARGE(Main!$E$8:$E$24,5) -> 3621375 | C37: =LARGE(Main!$F$8:$F$26,5) -> 2426925 | D37: =SUMIF(Main!$F$8:$F$24,C37,Main!$K$8:$K$24) -> 23950 | E37: @ | F37: 5 | G37: =LARGE(Main!$Q$8:$Q$24,5) -> 2865450 | H37: =LARGE(Main!$P$8:$P$24,5) -> 724050 | I37: =SUMIF(Main!$P$8:$P$24,H37,Main!$K$8:$K$24) -> 23850
E38: BANK NIFTY

Sheet Screener
A1: TREND | G1: MOVEMENT | N1: RANGE
B2: TOTAL OI CHANGE | H2: CHANGE in O I | N2: RANK | O2: CE | P2: CE STRIKE | Q2: PE | R2: PE STRIKE
B3: CE OI | C3: PE OI | D3: NETin OI | H3: C in CE OI | I3: C in PE OI | J3: NET c in OI | K3: PCR | N3: 1 | O3: =LARGE(Main!$E$8:$E$26,1) -> 10932900 | P3: =Sheet1!D33 -> 23900 | Q3: =LARGE(Main!$Q$8:$Q$24,1) -> 5788650 | R3: =Sheet1!I33 -> 23800
B4: =Main!E27 -> 46089000 | C4: =Main!Q27 -> 38407875 | D4: =B4-C4 -> 7681125 | H4: =Main!F27 -> 26624025 | I4: =Main!P27 -> 6561300 | J4: =H4-I4 -> 20062725 | K4: =I4/H4% -> 24.64428275 | N4: 2 | O4: =LARGE(Main!$E$8:$E$26,2) -> 7179750 | P4: =Sheet1!D34 -> 24000 | Q4: =LARGE(Main!$Q$8:$Q$24,2) -> 5718075 | R4: =Sheet1!I34 -> 23750
H5: VI | N5: BUY CE / PE | P5: =P3-P4 -> -100 | R5: =R3-R4 -> 50
H6: CE VI | I6: PE VI | J6: NET c in VI | K6: PCR
H7: =Main!J27 -> 19.63470588 | I7: =Main!L27 -> 20.70764706 | J7: =H7-I7 -> -1.072941176 | K7: =I7/H7% -> 105.4645136
A22: MARKET BRADOR LEVELS
A23: MARKET @ | C23: =Main!K4 -> 23767.2 | E23: TRG-1 | F23: =C23+(C23*0.382%) -> 23857.9907 | G23: TRG-2 | H23: =C23+(C23*0.6182%) -> 23914.12883 | I23: TRG-3 | J23: =C23+(C23*1%) -> 24004.872 | K23: SL LONG | L23: =C23-(C23*0.5%) -> 23648.364 | M23: SL SHORT | N23: =C23+C23*0.5% -> 23886.036 | O23: BUY @ | P23: =R4 -> 23750 | Q23: SELL @ | R23: =P3 -> 23900
A24: CE RANK | B24: =Main!B21 -> 1 | C24: =Main!B16 -> 11 | D24: =Main!B19 -> 2 | E24: =Main!B17 -> 3 | F24: =Main!B18 -> 6 | G24: =Main!B20 -> 5 | H24: =Main!B11 -> 10 | I24: =Main!B15 -> 9 | J24: =Main!B22 -> 7 | K24: =Main!B23 -> 4 | L24: =Main!B24 -> 8 | M24: =Main!B14 -> 14 | N24: =Main!B13 -> 12 | O24: =Main!B12 -> 15 | P24: =Main!B10 -> 16 | Q24: =Main!B9 -> 13 | R24: =Main!B8 -> 17
A25: CE STRIKE | B25: =Main!K21 -> 24000 | C25: =Main!K16 -> 23750 | D25: =Main!K19 -> 23900 | E25: =Main!K17 -> 23800 | F25: =Main!K18 -> 23850 | G25: =Main!K20 -> 23950 | H25: =Main!K11 -> 23500 | I25: =Main!K15 -> 23700 | J25: =Main!K22 -> 24050 | K25: =Main!K23 -> 24100 | L25: =Main!K24 -> 24150 | M25: =Main!K14 -> 23650 | N25: =Main!K13 -> 23600 | O25: =Main!K12 -> 23550 | P25: =Main!K10 -> 23450 | Q25: =Main!K9 -> 23400 | R25: =Main!K8 -> 23350
A26: PE RANK | B26: =Main!T21 -> 4 | C26: =Main!T16 -> 9 | D26: =Main!T19 -> 3 | E26: =Main!T17 -> 1 | F26: =Main!T18 -> 8 | G26: =Main!T20 -> 10 | H26: =Main!T11 -> 2 | I26: =Main!T15 -> 5 | J26: =Main!T22 -> 16 | K26: =Main!T23 -> 15 | L26: =Main!T24 -> 17 | M26: =Main!T14 -> 11 | N26: =Main!T13 -> 6 | O26: =Main!T12 -> 12 | P26: =Main!T10 -> 14 | Q26: =Main!T9 -> 7 | R26: =Main!T8 -> 13

Sheet Symbol List (hidden)
B2: Scrips
B3: NIFTY | F3: BANKNIFTY | G3: 25
B4: BANKNIFTY | F4: NIFTY | G4: 75
B5: ACC | F5: NIFTYIT | G5: 50
B6: ADANIENT | F6: ADANIENT | G6: 4000
B7: ADANIPORTS | F7: ASHOKLEY | G7: 8000
B8: ADANIPOWER | F8: ACC | G8: 400
B9: AMARAJABAT | F9: ADANIPORTS | G9: 2500
B10: AMBUJACEM | F10: ADANIPOWER | G10: 10000
B11: APOLLOHOSP | F11: AMARAJABAT | G11: 800
B12: APOLLOTYRE | F12: AMBUJACEM | G12: 2500
B13: ASHOKLEY | F13: APOLLOHOSP | G13: 500
B14: ASIANPAINT | F14: APOLLOTYRE | G14: 3000
B15: AUROPHARMA | F15: AXISBANK | G15: 1200
B16: AXISBANK | F16: BAJAJ-AUTO | G16: 250
B17: BAJAJ-AUTO | F17: BAJAJFINSV | G17: 125
B18: BAJAJFINSV | F18: BALKRISIND | G18: 800
B19: BAJFINANCE | F19: BATAINDIA | G19: 550
B20: BALKRISIND | F20: BEL | G20: 6000
B21: BANDHANBNK | F21: BERGEPAINT | G21: 2200
B22: BANKBARODA | F22: BHARATFORG | G22: 1300
B23: BATAINDIA | F23: BHARTIARTL | G23: 1851
B24: BEL | F24: BHEL | G24: 10400
B25: BERGEPAINT | F25: CADILAHC | G25: 2200
B26: BHARATFORG | F26: CANBK | G26: 2600
B27: BHARTIARTL | F27: CENTURYTEX | G27: 600
B28: BHEL | F28: CESC | G28: 800
B29: BIOCON | F29: COALINDIA | G29: 2700
B30: BOSCHLTD | F30: COLPAL | G30: 700
B31: BPCL | F31: CONCOR | G31: 1563
B32: BRITANNIA | F32: CUMMINSIND | G32: 900
B33: CADILAHC | F33: DABUR | G33: 1250
B34: CANBK | F34: DLF | G34: 3300
B35: CENTURYTEX | F35: DRREDDY | G35: 250
B36: CESC | F36: EQUITAS | G36: 4900
B37: CHOLAFIN | F37: ESCORTS | G37: 1100
B38: CIPLA | F38: EXIDEIND | G38: 2900
B39: COALINDIA | F39: GAIL | G39: 5334
B40: COLPAL | F40: GLENMARK | G40: 1400
B41: CONCOR | F41: GODREJCP | G41: 800
B42: CUMMINSIND | F42: GRASIM | G42: 750
B43: DABUR | F43: HAVELLS | G43: 1000
B44: DIVISLAB | F44: HCLTECH | G44: 1400
B45: DLF | F45: HINDALCO | G45: 3500
B46: DRREDDY | F46: HINDPETRO | G46: 2100
B47: EICHERMOT | F47: HINDUNILVR | G47: 300
B48: EQUITAS | F48: ICICIPRULI | G48: 1500
B49: ESCORTS | F49: IGL | G49: 2750
B50: EXIDEIND | F50: INDIGO | G50: 300
B51: FEDERALBNK | F51: IOC | G51: 4000
B52: GAIL | F52: JSWSTEEL | G52: 2300
B53: GLENMARK | F53: JUBLFOOD | G53: 500
B54: GMRINFRA | F54: JUSTDIAL | G54: 1400
B55: GODREJCP | F55: KOTAKBANK | G55: 400
B56: GODREJPROP | F56: LT | G56: 375
B57: GRASIM | F57: LUPIN | G57: 700
B58: HAVELLS | F58: MARICO | G58: 1300
B59: HCLTECH | F59: MARUTI | G59: 100
B60: HDFC | F60: MCDOWELL-N | G60: 1250
B61: HDFCBANK | F61: MFSL | G61: 1300
B62: HDFCLIFE | F62: MGL | G62: 600
B63: HEROMOTOCO | F63: MOTHERSUMI | G63: 5000
B64: HINDALCO | F64: MRF | G64: 10
B65: HINDPETRO | F65: MUTHOOTFIN | G65: 1500
B66: HINDUNILVR | F66: NATIONALUM | G66: 11700
B67: IBULHSGFIN | F67: NESTLEIND | G67: 50
B68: ICICIBANK | F68: NIITTECH | G68: 375
B69: ICICIPRULI | F69: NMDC | G69: 6000
B70: IDEA | F70: NTPC | G70: 4800
B71: IDFCFIRSTB | F71: AUROPHARMA | G71: 1000
B72: IGL | F72: OIL | G72: 3399
B73: INDIGO | F73: ONGC | G73: 4100
B74: INDUSINDBK | F74: PEL | G74: 309
B75: INFRATEL | F75: PETRONET | G75: 3000
B76: INFY | F76: PFC | G76: 6200
B77: IOC | F77: POWERGRID | G77: 4000
B78: ITC | F78: RAMCOCEM | G78: 800
B79: JINDALSTEL | F79: RECLTD | G79: 6000
B80: JSWSTEEL | F80: RELIANCE | G80: 500
B81: JUBLFOOD | F81: SBIN | G81: 3000
B82: JUSTDIAL | F82: SHREECEM | G82: 50
B83: KOTAKBANK | F83: SRTRANSFIN | G83: 600
B84: L&TFH | F84: SUNPHARMA | G84: 1250
B85: LICHSGFIN | F85: IDEA | G85: 98000
B86: LT | F86: SUNTV | G86: 1200
B87: LUPIN | F87: TATACONSUM | G87: 2700
B88: M&M | F88: TATAMOTORS | G88: 4300
B89: M&MFIN | F89: TATAPOWER | G89: 9000
B90: MANAPPURAM | F90: TATASTEEL | G90: 1500
B91: MARICO | F91: TCS | G91: 250
B92: MARUTI | F92: TECHM | G92: 1200
B93: MCDOWELL-N | F93: TORNTPOWER | G93: 3000
B94: MFSL | F94: UJJIVAN | G94: 1700
B95: MGL | F95: ULTRACEMCO | G95: 200
B96: MINDTREE | F96: UPL | G96: 900
B97: MOTHERSUMI | F97: VOLTAS | G97: 1000
B98: MRF | F98: WIPRO | G98: 3200
B99: MUTHOOTFIN | F99: BIOCON | G99: 2300
B100: NATIONALUM | F100: BANDHANBNK | G100: 1200
B101: NAUKRI | F101: BOSCHLTD | G101: 40
B102: NCC | F102: NAUKRI | G102: 200
B103: NESTLEIND | F103: BPCL | G103: 1800
B104: NIITTECH | F104: CIPLA | G104: 1150
B105: NMDC | F105: ASIANPAINT | G105: 600
B106: NTPC | F106: BAJFINANCE | G106: 250
B107: OIL | F107: BANKBARODA | G107: 5400
B108: ONGC | F108: EICHERMOT | G108: 30
B109: PAGEIND | F109: BRITANNIA | G109: 200
B110: PEL | F110: GMRINFRA | G110: 45000
B111: PETRONET | F111: CHOLAFIN | G111: 2500
B112: PFC | F112: DIVISLAB | G112: 400
B113: PIDILITIND | F113: FEDERALBNK | G113: 7000
B114: PNB | F114: HDFC | G114: 250
B115: POWERGRID | F115: HDFCBANK | G115: 500
B116: PVR | F116: HEROMOTOCO | G116: 200
B117: RAMCOCEM | F117: IBULHSGFIN | G117: 1200
B118: RBLBANK | F118: ICICIBANK | G118: 1375
B119: RECLTD | F119: HDFCLIFE | G119: 900
B120: RELIANCE | F120: IDFCFIRSTB | G120: 12000
B121: SAIL | F121: INDUSINDBK | G121: 400
B122: SBIN | F122: ITC | G122: 2400
B123: SHREECEM | F123: L&TFH | G123: 5600
B124: SIEMENS | F124: JINDALSTEL | G124: 5000
B125: SRF | F125: M&MFIN | G125: 1600
B126: SRTRANSFIN | F126: MANAPPURAM | G126: 6000
B127: SUNPHARMA | F127: MINDTREE | G127: 800
B128: SUNTV | F128: SRF | G128: 250
B129: TATACHEM | F129: LICHSGFIN | G129: 1300
B130: TATACONSUM | F130: TORNTPHARM | G130: 500
B131: TATAMOTORS | F131: INFY | G131: 1200
B132: TATAPOWER | F132: M&M | G132: 1000
B133: TATASTEEL | F133: PIDILITIND | G133: 500
B134: TCS | F134: NCC | G134: 9000
B135: TECHM | F135: PAGEIND | G135: 25
B136: TITAN | F136: PNB | G136: 8300
B137: TORNTPHARM | F137: PVR | G137: 400
B138: TORNTPOWER | F138: RBLBANK | G138: 1500
B139: TVSMOTOR | F139: SAIL | G139: 15700
B140: UBL | F140: SIEMENS | G140: 550
B141: UJJIVAN | F141: TVSMOTOR | G141: 1350
B142: ULTRACEMCO | F142: UBL | G142: 700
B143: UPL | F143: VEDL | G143: 3500
B144: VEDL | F144: INFRATEL | G144: 2000
B145: VOLTAS | F145: TATACHEM | G145: 900
B146: WIPRO | F146: TITAN | G146: 750
B147: YESBANK | F147: ZEEL | G147: 1700
B148: ZEEL | F148: YESBANK | G148: 8800
F149: GODREJPROP | G149: 650

Sheet Concept
B1: Price | C1: Change inOI | D1: Interpretation
B2: Increasing | C2: Increasing | D2: Long Builup | E2: LONG
B3: Increasing | C3: Decreasing | D3: Short covering
B4: Decreasing | C4: Decreasing | D4: Long Unwinding | E4: SHORT
B5: Decreasing | C5: Increasing | D5: Short Buildup
